Workbook

Sheet Print

Sheet Title Page
C1: PERIOD | D1: Product Qualifier | E1: Summary Centers | F1: VERSION | G1: Consolidated BU Rollup | H1: All Products

Sheet i
B1: THE HANOVER INSURANCE GROUP
B2: FINANCIAL SUPPLEMENT
B7: TABLE OF CONTENTS
B10: Business Descriptions.......................................................................................... | C10: 1
B11: Financial Highlights.......................................................................................... | C11: 2
B12: Consolidated Financial Statements
B13: Income Statements.......................................................................................... | C13: 3
B14: Balance Sheets.................................................................................................. | C14: 4
B15: GAAP Underwriting Results
B16: Consolidated.............................................................................................. | C16: 5-7
B17: Commercial Lines.............................................................................................. | C17: 8-10
B18: Personal Lines.............................................................................................. | C18: 11-13
B19: Chaucer.............................................................................................................. | C19: 14-16
B20: Investments
B21: Net Investment Income and Yields.................................................................................. | C21: 17
B22: Investment Portfolio.......................................................................................... | C22: 18
B23: Credit Quality and Duration of Fixed Maturities.................................................................................................. | C23: 19
B24: Top 10 Corporate and Municipal Fixed Maturity Holdings.................................................................................................. | C24: 20
B25: Reconciliation of Operating Income to Net Income.......................................................................................... | C25: 21
B26: Other Information
B27: Non-GAAP Financial Measures.............................................................................................. | C27: 22
B28: Corporate Information.............................................................................................. | C28: 23
B29: Market and Dividend Information.............................................................................................. | C29: 23
B30: Financial Strength and Debt Ratings.............................................................................................. | C30: 23

Sheet 1
A1: THE HANOVER INSURANCE GROUP
A3: BASIS OF PRESENTATION
A5: Prior periods were restated for the effect of the Company's adoption of ASC Update No 2015-03, (Subtopic 835-30) Interest - Imputation of Interest: Simplify the Presentation of Debt Issuance Costs, on the Balance Sheet and Income Statement.
A8: BUSINESS DESCRIPTIONS
A10: COMMERCIAL LINES
A12: Commercial multiple peril coverage insures businesses against third party liability from accidents occurring on their premises or arising out of their operations, such as injuries sustained from products sold. It also insures business property for damage, such as that caused by fire, wind, hail, water damage (except for flooding), theft and vandalism.
A14: Commercial automobile coverage insures businesses against losses incurred from personal bodily injury, bodily injury to third parties, property damage to an insured’s vehicle, and property damage to other vehicles and property.
A16: Workers’ compensation coverage insures employers against employee medical and indemnity claims resulting from injuries related to work. Workers’ compensation policies are often written in conjunction with other commercial policies.
A18: Other Commercial Lines is comprised of inland marine, which insures businesses against physical losses to property, such as contractor’s equipment, builders’ risk and goods in transit. We also offer underwriting and managing of program business, including to under-served markets where there are specialty coverage or risk management needs. Other Commercial Lines also includes bonds, which provides businesses with contract surety coverage in the event of performance or payment claims, and commercial surety coverage related to fiduciary or regulatory obligations. Also included in Other Commercial Lines coverages are umbrella, general liability, fire, specialty property, and professional and management liability.
A20: PERSONAL LINES
A22: Personal automobile coverage insures individuals against losses incurred from personal bodily injury, bodily injury to third parties, property damage to an insured’s vehicle, and property damage to other vehicles and other property.
A24: Homeowners coverage insures individuals for losses to their residences and personal property, such as those caused by fire, wind, hail, water damage (except for flooding), theft and vandalism, and against third party liability claims.
A26: Other Personal Lines are comprised of personal inland marine (jewelry, art, etc.), umbrella, fire, personal watercraft, earthquake and other miscellaneous coverages.
A28: CHAUCER
A30: The Chaucer reporting segment represents THG's international business written through Lloyd's and includes international marine and aviation, property, energy, casualty and other and U.K. motor coverages.
A32: Marine and Aviation includes coverages that insure marine hull, excess of loss, liability, cargo and specie, in addition to political risk and war business coverages. It also includes aviation coverages that insure airline hull and liability, general aviation, refuellers, aviation products and satellite.
A34: Property coverage, including direct, facultative and treaty property accounts, insures property, including commercial, auto, and industrial businesses, against physical loss or damage and business interruption. The property treaty account comprises mainly catastrophe and per risk excess contract acceptances, with a small amount of proportional treaty and reinsurance assumed business.
A36: Energy coverage, encompassing exploration and production, construction, liabilities downstream and renewables, insures energy businesses against physical damage, business interruption, control of well, seepage and pollution and liabilities. Energy also includes Nuclear, which predominantly provides coverage relating to power generation at nuclear power stations.
A38: Casualty and Other Lines includes coverages that insure financial institutions crime and professional indemnity, medical malpractice, workers' compensation and professional, managerial and general liability, as well as syndicate participations.
A40: UK Motor coverage insures the UK private car and fleet markets. In addition, it writes specialist classes including commercial vehicle, taxi, motorcycle, motor trade and classic/specialist vehicles, as well as other UK small commercial products. The Company exited this business effective June 30, 2015.
A42: OTHER
A44: Included in Other are Opus, which provides investment advisory services to affiliates and also manages assets for unaffiliated institutions such as insurance companies, retirement plans and foundations; earnings on holding company assets; and a discontinued voluntary pools business.

Sheet 2
A1: THE HANOVER INSURANCE GROUP
A2: FINANCIAL HIGHLIGHTS
D5: Q3 | G5: Q4 | J5: Q1 | M5: Q2 | P5: Q3 | S5: Sep-YTD | V5: Sep-YTD
A6: (In millions, except earnings per share) | D6: 2015 | G6: 2015 | J6: 2016 | M6: 2016 | P6: 2016 | S6: 2015 | V6: 2016
A7: PREMIUMS
A8: Gross premiums written | C8: $ | D8: 1379700000 | F8: $ | G8: 1174300000 | I8: $ | J8: 1375000000 | L8: $ | M8: 1402000000 | O8: $ | P8: 1402200000 | R8: $ | S8: 4270200000 | U8: $ | V8: 4179200000
A10: Net premiums written (1) | D10: 1199600000 | G10: 1046100000 | J10: 1144300000 | M10: 1221600000 | P10: 1250900000 | S10: 3708100000 | V10: 3616800000
A12: Net premiums earned | D12: 1150100000 | G12: 1137900000 | J12: 1151300000 | M12: 1145500000 | P12: 1160900000 | S12: 3566900000 | V12: 3457700000
A14: EARNINGS
A15: Operating income before interest and taxes | C15: $ | D15: 122600000 | F15: $ | G15: 123600000 | I15: $ | J15: 120400000 | L15: $ | M15: 94700000 | O15: $ | P15: 129800000 | R15: $ | S15: 342500000 | U15: $ | V15: 344900000
A16: Operating income after taxes | D16: 72200000 | G16: 80300000 | J16: 71500000 | M16: 54000000 | P16: 78600000 | S16: 199700000 | V16: 204100000
A18: Income from continuing operations | D18: 77200000 | G18: 77800000 | J18: 78100000 | M18: 1900000 | P18: 88300000 | S18: 253000000 | V18: 168300000
A20: Net income | D20: 78300000 | G20: 77600000 | J20: 78200000 | K20: 2000000 | M20: 2000000 | P20: 88400000 | S20: 253900000 | V20: 168600000
A22: PER SHARE DATA (DILUTED)
A24: Operating income after taxes | C24: $ | D24: 1610000 | F24: $ | G24: 1820000 | I24: $ | J24: 1640000 | L24: $ | M24: 1240000 | O24: $ | P24: 1830000 | R24: $ | S24: 4430000 | U24: $ | V24: 4710000
A26: Income from continuing operations | D26: 1.72 | G26: 1.76 | J26: 1.79 | M26: 0.04 | P26: 2.06 | S26: 5.62 | V26: 3.89
A28: Net income | D28: 1.74 | G28: 1.76 | J28: 1.8 | M28: 0.05 | P28: 2.06 | S28: 5.64 | V28: 3.89
A30: Weighted average shares outstanding | D30: 44900000 | G30: 44100000 | J30: 43500000 | M30: 43400000 | P30: 43000000 | S30: 45000000 | V30: 43300000
A34: BALANCE SHEET
D35: September 30 | G35: December 31 | J35: March 31 | M35: June 30 | P35: September 30
A36: (In millions, except per share data) | D36: 2015 | G36: 2015 | J36: 2016 | M36: 2016 | P36: 2016
A38: Total assets | C38: $ | D38: 14031200000 | F38: $ | G38: 13781200000 | I38: $ | J38: 14027700000 | L38: $ | M38: 14163600000 | O38: $ | P38: 14363700000
A39: Total loss and loss adjustment expense reserves | D39: 6606300000 | G39: 6574400000 | J39: 6722300000 | M39: 6778000000 | P39: 6802300000
A40: Total shareholders' equity | D40: 2877500000 | G40: 2844400000 | J40: 2957000000 | M40: 3009700000 | P40: 3045700000
A41: Total shareholders' equity, excluding net unrealized appreciation
A42: depreciation on investments, net of tax | D42: 2679600000 | G42: 2694500000 | J42: 2710600000 | M42: 2686200000 | P42: 2724300000
A44: U.S. Property and Casualty Companies
A45: Statutory surplus | C45: $ | D45: 2129.4 | F45: $ | G45: 2192.8 | I45: $ | J45: 2276.7 | L45: $ | M45: 2152.6 | O45: $ | P45: 2218.5
A46: Premium to surplus ratio | D46: 1.74:1 | G46: 1.70:1 | J46: 1.65:1 | M46: 1.76:1 | P46: 1.73:1
A48: Book value per share | C48: $ | D48: 66550000 | F48: $ | G48: 66210000 | I48: $ | J48: 69300000 | L48: $ | M48: 70580000 | O48: $ | P48: 72080000
A49: Book value per share, excluding net unrealized appreciation
A50: depreciation on investments, net of tax | C50: $ | D50: 61.97 | F50: $ | G50: 62.72 | I50: $ | J50: 63.52 | L50: $ | M50: 62.99 | O50: $ | P50: 64.48
A51: Tangible book value per share (total book value excluding goodwill
A52: and intangibles) | C52: $ | D52: 60050000 | F52: $ | G52: 59580000 | I52: $ | J52: 62700000 | L52: $ | M52: 64110000 | O52: $ | P52: 65740000
A54: Shares outstanding | D54: 43200000 | G54: 43000000 | J54: 42700000 | M54: 42700000 | P54: 42300000
A56: Total debt/equity | D56: 0.279 | G56: 0.282 | J56: 0.272 | M56: 0.265 | P56: 0.262
A57: Total debt/total capital | D57: 0.218 | G57: 0.22 | J57: 0.214 | M57: 0.21 | P57: 0.208
A59: (1) Net premiums written for Chaucer do not reflect the June 30, 2015 transfer of $137.4 million of unearned premium reserves previously written by the U.K. motor business.
A60: This transfer of unearned premium reserves is part of the disposal of the U.K. motor business and has no impact on net premiums earned.

Sheet 91440F1D0FFA4902BC14BDE93F7637F (hidden)

Sheet 3
A1: THE HANOVER INSURANCE GROUP
A2: CONSOLIDATED INCOME STATEMENTS
D6: Three Months ended September 30 | L6: Nine Months ended September 30
A7: (In millions) | D7: 2016 | G7: 2015 | I7: % Change | L7: 2016 | O7: 2015 | Q7: % Change
A9: REVENUES
A10: Premiums earned | C10: $ | D10: 1160900000 | F10: $ | G10: 1150100000 | I10: 0.9 | K10: $ | L10: 3457700000 | N10: $ | O10: 3566900000 | Q10: -3.1
A11: Net investment income | D11: 67800000 | G11: 68300000 | I11: -0.7 | L11: 205200000 | O11: 209100000 | Q11: -1.9
A12: Net realized investment gains | D12: 4200000 | G12: 8000000 | I12: -47.5 | L12: 5000000 | O12: 30000000 | Q12: -83.3
A13: Fees and other income | D13: 8300000 | G13: 7100000 | I13: 16.9 | L13: 22900000 | O13: 23300000 | Q13: -1.7
A14: Total revenues | D14: 1241200000 | G14: 1233500000 | I14: 0.6 | L14: 3690800000 | O14: 3829300000 | Q14: -3.6
A16: LOSSES AND EXPENSES
A17: Losses and loss adjustment expenses | D17: 692000000 | G17: 690700000 | I17: 0.2 | L17: 2121300000 | O17: 2208700000 | Q17: -4
A18: Amortization of deferred acquisition costs | D18: 257900000 | G18: 259000000 | I18: -0.4 | L18: 771400000 | O18: 781600000 | Q18: -1.3
A19: Interest expense | D19: 12500000 | G19: 14800000 | I19: -15.5 | L19: 42800000 | O19: 45900000 | Q19: -6.8
A20: Gain on disposal of U.K. motor business | D20: -100000 | G20: 0 | I20: N/M | L20: -1300000 | O20: -37700000 | Q20: N/M
A21: Net loss from repayment of debt | D21: 0 | G21: 5600000 | I21: N/M | L21: 86100000 | O21: 24100000 | Q21: N/M
A22: Other operating expenses | D22: 154800000 | G22: 153000000 | I22: 1.2 | L22: 445400000 | O22: 466700000 | Q22: -4.6
A23: Total losses and expenses | D23: 1117100000 | G23: 1123100000 | I23: -0.5 | L23: 3465700000 | O23: 3489300000 | Q23: -0.7
A26: Income from continuing operations before income taxes | D26: 124100000 | G26: 110400000 | I26: 12.4 | L26: 225100000 | O26: 340000000 | Q26: -33.8
A27: Income tax expense | D27: 35800000 | G27: 33200000 | I27: 7.8 | L27: 56800000 | O27: 87000000 | Q27: -34.7
A29: Income from continuing operations | D29: 88300000 | G29: 77200000 | I29: 14.4 | L29: 168300000 | O29: 253000000 | Q29: -33.5
I30: -
A31: Discontinued operations | D31: 100000 | G31: 1100000 | I31: N/M | L31: 300000 | O31: 900000 | Q31: N/M
A33: Net income | C33: $ | D33: 88400000 | F33: $ | G33: 78300000 | I33: 12.9 | K33: $ | L33: 168600000 | N33: $ | O33: 253900000 | Q33: -33.6

Sheet 4
A1: THE HANOVER INSURANCE GROUP
A2: CONSOLIDATED BALANCE SHEETS
D6: September 30 | G6: December 31
A7: (In millions, except per share data) | D7: 2016 | G7: 2015 | I7: % Change
A8: ASSETS
A9: Investments:
A10: Fixed maturities, at fair value (amortized cost of $7,100.4 and $6,934.0) | C10: $ | D10: 7400200000 | F10: $ | G10: 6983400000 | I10: 6
A11: Equity securities, at fair value (cost of $533.6 and $528.5) | D11: 612500000 | G11: 576600000 | I11: 6.2
A12: Other investments | D12: 483400000 | G12: 393400000 | I12: 22.9
A13: Total investments | D13: 8496100000 | G13: 7953400000 | I13: 6.8
A14: Cash and cash equivalents | D14: 315900000 | G14: 338800000 | I14: -6.8
A15: Accrued investment income | D15: 62500000 | G15: 62900000 | I15: -0.6
A16: Premiums and accounts receivable, net | D16: 1534900000 | G16: 1391700000 | I16: 10.3
A17: Reinsurance recoverable on paid and unpaid losses and unearned premiums | D17: 2655100000 | G17: 2635000000 | I17: 0.8
A18: Deferred acquisition costs | D18: 537400000 | G18: 508800000 | I18: 5.6
A19: Deferred income taxes | D19: 16200000 | G19: 137900000 | I19: -88.3
A20: Goodwill | D20: 185100000 | G20: 186000000 | I20: -0.5
A21: Other assets | D21: 476500000 | G21: 483700000 | I21: -1.5
A22: Assets of discontinued operations | D22: 84000000 | G22: 83000000 | I22: 1.2
A23: Total assets | C23: $ | D23: 14363700000 | F23: $ | G23: 13781200000 | I23: 4.2
A25: LIABILITIES AND SHAREHOLDERS' EQUITY
A27: LIABILITIES
A28: Loss and loss adjustment expense reserves | C28: $ | D28: 6802300000 | F28: $ | G28: 6574400000 | I28: 3.5
A29: Unearned premiums | D29: 2684800000 | G29: 2540800000 | I29: 5.7
A30: Expenses and taxes payable | D30: 662300000 | G30: 724900000 | I30: -8.6
A31: Reinsurance premiums payable | D31: 283700000 | G31: 205200000 | I31: 38.3
A32: Debt | D32: 797900000 | G32: 803100000 | I32: -0.6
A33: Liabilities of discontinued operations | D33: 87000000 | G33: 88400000 | I33: -1.6
A34: Total liabilities | D34: 11318000000 | G34: 10936800000 | I34: 3.5
A36: SHAREHOLDERS' EQUITY
A37: Preferred stock, par value $0.01 per share;
A38: 20.0 million shares authorized; none issued | D38: 0 | G38: 0 | I38: -
A39: Common stock, par value $0.01 per share; 300.0 million shares
A40: authorized; 60.5 million shares issued | D40: 600000 | G40: 600000 | I40: -
A41: Additional paid-in capital | D41: 1838900000 | G41: 1833500000 | I41: 0.3
A42: Accumulated other comprehensive income | D42: 227000000 | G42: 53900000 | I42: 321.2
A43: Retained earnings | D43: 1910400000 | G43: 1803500000 | I43: 5.9
A44: Treasury stock at cost (18.2 and 17.5 million shares) | D44: -931200000 | G44: -847100000 | I44: 9.9
A45: Total shareholders' equity | D45: 3045700000 | G45: 2844400000 | I45: 7.1
A46: Total liabilities and shareholders' equity | C46: $ | D46: 14363700000 | F46: $ | G46: 13781200000 | I46: 4.2

Sheet 5
A1: THE HANOVER INSURANCE GROUP
A2: GAAP UNDERWRITING AND OPERATING INCOME INFORMATION AND RATIOS
A4: CONSOLIDATED
A6: Three Months ended September 30
D10: 2016 | S10: 2015
E13: Commercial | H13: Personal | T13: Commercial | W13: Personal
A14: (In millions, except percentage data) | E14: Lines | H14: Lines | K14: Chaucer | N14: Other | Q14: Total | T14: Lines | W14: Lines | Z14: Chaucer | AC14: Other | AF14: Total
B17: Gross premiums written | D17: $ | E17: 730000000 | G17: $ | H17: 428700000 | J17: $ | K17: 243500000 | M17: $ | N17: 0 | P17: $ | Q17: 1402200000 | S17: $ | T17: 701200000 | V17: $ | W17: 403000000 | Y17: $ | Z17: 275500000 | AB17: $ | AC17: 0 | AE17: $ | AF17: 1379700000
B19: Net premiums written | D19: $ | E19: 647300000 | G19: $ | H19: 407500000 | J19: $ | K19: 196100000 | M19: $ | N19: 0 | P19: $ | Q19: 1250900000 | S19: $ | T19: 617600000 | V19: $ | W19: 383300000 | Y19: $ | Z19: 198700000 | AB19: $ | AC19: 0 | AE19: $ | AF19: 1199600000
B21: Net premiums earned | D21: $ | E21: 587200000 | G21: $ | H21: 371500000 | J21: $ | K21: 202200000 | M21: $ | N21: 0 | P21: $ | Q21: 1160900000 | S21: $ | T21: 560400000 | V21: $ | W21: 358600000 | Y21: $ | Z21: 231100000 | AB21: $ | AC21: 0 | AE21: $ | AF21: 1150100000
B23: Losses and LAE:
B25: Current accident year, excluding catastrophe losses | E25: 336000000 | H25: 226700000 | K25: 110400000 | N25: 100000 | Q25: 673200000 | T25: 324600000 | W25: 219400000 | Z25: 123300000 | AC25: 0 | AF25: 667300000
B27: Prior accident year unfavorable (favorable) reserve development, excluding catastrophe losses | E27: 19300000 | H27: -1100000 | K27: -26600000 | N27: 300000 | Q27: -8100000 | T27: 11800000 | W27: -2500000 | Z27: -32100000 | AC27: 400000 | AF27: -22400000
B29: Current accident year catastrophe losses | E29: 16400000 | H29: 10800000 | K29: 400000 | N29: 0 | Q29: 27600000 | T29: 10100000 | W29: 18900000 | Z29: 29200000 | AC29: 0 | AF29: 58200000
B31: Prior accident year unfavorable (favorable) catastrophe loss development | E31: 1300000 | H31: 1500000 | K31: -3500000 | N31: 0 | Q31: -700000 | T31: 3700000 | W31: 1200000 | Z31: -17300000 | AC31: 0 | AF31: -12400000
B33: Total losses and LAE | E33: 373000000 | H33: 237900000 | K33: 80700000 | N33: 400000 | Q33: 692000000 | T33: 350200000 | W33: 237000000 | Z33: 103100000 | AC33: 400000 | AF33: 690700000
B35: Amortization of deferred acquisition costs and other underwriting expenses | E35: 210600000 | H35: 110300000 | K35: 83700000 | N35: 400000 | Q35: 405000000 | T35: 201900000 | W35: 103700000 | Z35: 98400000 | AC35: 500000 | AF35: 404500000
N36: 0
B37: GAAP underwriting profit (loss) | E37: 3600000 | H37: 23300000 | K37: 37800000 | N37: -800000 | Q37: 63900000 | T37: 8300000 | W37: 17900000 | Z37: 29600000 | AC37: -900000 | AF37: 54900000
B39: Net investment income | E39: 39000000 | H39: 17100000 | K39: 10300000 | N39: 1400000 | Q39: 67800000 | T39: 38700000 | W39: 18000000 | Z39: 10500000 | AC39: 1100000 | AF39: 68300000
B41: Other income | E41: 2200000 | H41: 2900000 | K41: 2500000 | N41: 700000 | Q41: 8300000 | T41: 2100000 | W41: 3100000 | Z41: 1100000 | AC41: 800000 | AF41: 7100000
B43: Other operating expenses | E43: -2300000 | H43: -1600000 | K43: -2200000 | N43: -4100000 | Q43: -10200000 | T43: -2000000 | W43: -1800000 | Z43: 0 | AC43: -3900000 | AF43: -7700000
B45: Operating income (loss) before income taxes | D45: $ | E45: 42500000 | G45: $ | H45: 41700000 | J45: $ | K45: 48400000 | M45: $ | N45: -2800000 | P45: $ | Q45: 129800000 | S45: $ | T45: 47100000 | V45: $ | W45: 37200000 | Y45: $ | Z45: 41200000 | AB45: $ | AC45: -2900000 | AE45: $ | AF45: 122600000
B50: Loss and LAE ratio:
B52: Current accident year, excluding catastrophe losses | E52: 0.572 | H52: 0.611 | K52: 0.546 | N52: N/M | Q52: 0.58 | T52: 0.579 | W52: 0.612 | Z52: 0.534 | AC52: N/M | AF52: 0.58
B54: Prior accident year unfavorable (favorable) reserve development, excluding catastrophe losses | E54: 0.033 | H54: -0.003 | K54: -0.132 | N54: N/M | Q54: -0.007 | T54: 0.021 | W54: -0.007 | Z54: -0.139 | AC54: N/M | AF54: -0.019
B56: Current accident year catastrophe losses | E56: 0.028 | H56: 0.029 | K56: 0.002 | N56: N/M | Q56: 0.024 | T56: 0.018 | W56: 0.053 | Z56: 0.126 | AC56: N/M | AF56: 0.051
B58: Prior accident year unfavorable (favorable) catastrophe loss development | E58: 0.002 | H58: 0.004 | K58: -0.017 | N58: N/M | Q58: -0.001 | T58: 0.007 | W58: 0.003 | Z58: -0.075 | AC58: N/M | AF58: -0.011
B59: Total loss and LAE ratio | E59: 0.635 | H59: 0.641 | K59: 0.399 | N59: N/M | Q59: 0.596 | T59: 0.625 | W59: 0.661 | Z59: 0.446 | AC59: N/M | AF59: 0.601
B61: Expense ratio | E61: 0.357 | H61: 0.29 | K61: 0.414 | N61: N/M | Q61: 0.346 | T61: 0.358 | W61: 0.281 | Z61: 0.426 | AC61: N/M | AF61: 0.348
B63: Combined ratio | E63: 0.992 | H63: 0.931 | K63: 0.813 | N63: N/M | Q63: 0.942 | T63: 0.983 | W63: 0.942 | Z63: 0.872 | AC63: N/M | AF63: 0.949

Sheet 6
A1: THE HANOVER INSURANCE GROUP
A2: GAAP UNDERWRITING AND OPERATING INCOME INFORMATION AND RATIOS
A4: CONSOLIDATED
A6: Nine Months ended September 30
C10: 2016 | S10: 2015
E13: Commercial | H13: Personal | T13: Commercial | W13: Personal
B14: (In millions, except percentage data) | E14: Lines | H14: Lines | K14: Chaucer | N14: Other | Q14: Total | T14: Lines | W14: Lines | Z14: Chaucer | AC14: Other | AF14: Total
B16: Gross premiums written | D16: $ | E16: 2073000000 | G16: $ | H16: 1202100000 | J16: $ | K16: 904100000 | M16: $ | N16: 0 | P16: $ | Q16: 4179200000 | S16: $ | T16: 2000100000 | V16: $ | W16: 1153900000 | Y16: $ | Z16: 1116200000 | AB16: $ | AC16: 0 | AE16: $ | AF16: 4270200000
B18: Net premiums written (1) | D18: $ | E18: 1831500000 | G18: $ | H18: 1139800000 | J18: $ | K18: 645500000 | M18: $ | N18: 0 | P18: $ | Q18: 3616800000 | S18: $ | T18: 1768600000 | V18: $ | W18: 1088000000 | Y18: $ | Z18: 851500000 | AB18: $ | AC18: 0 | AE18: $ | AF18: 3708100000
B20: Net premiums earned | D20: $ | E20: 1733300000 | G20: $ | H20: 1094800000 | J20: $ | K20: 629600000 | M20: $ | N20: 0 | P20: $ | Q20: 3457700000 | S20: $ | T20: 1663600000 | V20: $ | W20: 1068200000 | Y20: $ | Z20: 835100000 | AB20: $ | AC20: 0 | AE20: $ | AF20: 3566900000
B22: Losses and LAE:
B24: Current accident year, excluding catastrophe losses | E24: 969700000 | H24: 663600000 | K24: 381900000 | N24: 100000 | Q24: 2015300000 | T24: 960500000 | W24: 668200000 | Z24: 501500000 | AC24: 100000 | AF24: 2130300000
B26: Prior accident year unfavorable (favorable) reserve development, excluding catastrophe losses | E26: 61500000 | H26: -900000 | K26: -64600000 | N26: 900000 | Q26: -3100000 | T26: 18700000 | W26: -6600000 | Z26: -89300000 | AC26: 1000000 | AF26: -76200000
B28: Current accident year catastrophe losses | E28: 62200000 | H28: 31000000 | K28: 36600000 | N28: 0 | Q28: 129800000 | T28: 73300000 | W28: 58200000 | Z28: 39400000 | AC28: 0 | AF28: 170900000
B30: Prior accident year unfavorable (favorable) catastrophe loss development | E30: 300000 | H30: 4300000 | K30: -25300000 | N30: 0 | Q30: -20700000 | T30: -2400000 | W30: 8300000 | Z30: -22200000 | AC30: 0 | AF30: -16300000
B32: Total losses and LAE | E32: 1093700000 | H32: 698000000 | K32: 328600000 | N32: 1000000 | Q32: 2121300000 | T32: 1050100000 | W32: 728100000 | Z32: 429400000 | AC32: 1100000 | AF32: 2208700000
B34: Amortization of deferred acquisition costs and other underwriting expenses | E34: 627200000 | H34: 315600000 | K34: 247200000 | N34: 1100000 | Q34: 1191100000 | T34: 602600000 | W34: 305800000 | Z34: 313000000 | AC34: 1200000 | AF34: 1222600000
N35: 0
B36: GAAP underwriting profit (loss) | E36: 12400000 | H36: 81200000 | K36: 53800000 | N36: -2100000 | Q36: 145300000 | T36: 10900000 | W36: 34300000 | Z36: 92700000 | AC36: -2300000 | AF36: 135600000
B38: Net investment income | E38: 117500000 | H38: 51600000 | K38: 32300000 | N38: 3800000 | Q38: 205200000 | T38: 116700000 | W38: 54200000 | Z38: 34800000 | AC38: 3400000 | AF38: 209100000
B40: Other income | E40: 6400000 | H40: 8400000 | K40: 6000000 | N40: 2100000 | Q40: 22900000 | T40: 6400000 | W40: 9000000 | Z40: 5600000 | AC40: 2300000 | AF40: 23300000
B42: Other operating expenses | E42: -7100000 | H42: -5000000 | K42: -4500000 | N42: -11900000 | Q42: -28500000 | T42: -7500000 | W42: -5900000 | Z42: -700000 | AC42: -11400000 | AF42: -25500000
B44: Operating income (loss) before income taxes | D44: $ | E44: 129200000 | G44: $ | H44: 136200000 | J44: $ | K44: 87600000 | M44: $ | N44: -8100000 | P44: $ | Q44: 344900000 | S44: $ | T44: 126500000 | V44: $ | W44: 91600000 | Y44: $ | Z44: 132400000 | AB44: $ | AC44: -8000000 | AE44: $ | AF44: 342500000
B49: Loss and LAE ratio:
B51: Current accident year, excluding catastrophe losses | E51: 0.56 | H51: 0.606 | K51: 0.607 | N51: N/M | Q51: 0.583 | T51: 0.577 | W51: 0.626 | Z51: 0.6 | AC51: N/M | AF51: 0.597
B53: Prior accident year unfavorable (favorable) reserve development, excluding catastrophe losses | E53: 0.035 | H53: -0.001 | K53: -0.103 | N53: N/M | Q53: -0.001 | T53: 0.011 | W53: -0.006 | Z53: -0.107 | AC53: N/M | AF53: -0.021
B55: Current accident year catastrophe losses | E55: 0.036 | H55: 0.028 | K55: 0.058 | N55: N/M | Q55: 0.038 | T55: 0.044 | W55: 0.054 | Z55: 0.047 | AC55: N/M | AF55: 0.048
B57: Prior accident year unfavorable (favorable) catastrophe loss development | E57: 0 | H57: 0.004 | K57: -0.04 | N57: N/M | Q57: -0.006 | T57: -0.001 | W57: 0.008 | Z57: -0.026 | AC57: N/M | AF57: -0.005
B58: Total loss and LAE ratio | E58: 0.631 | H58: 0.637 | K58: 0.522 | N58: N/M | Q58: 0.614 | T58: 0.631 | W58: 0.682 | Z58: 0.514 | AC58: N/M | AF58: 0.619
B60: Expense ratio | E60: 0.36 | H60: 0.282 | K60: 0.393 | N60: N/M | Q60: 0.341 | T60: 0.361 | W60: 0.279 | Z60: 0.375 | AC60: N/M | AF60: 0.34
B62: Combined ratio | E62: 0.991 | H62: 0.919 | K62: 0.915 | N62: N/M | Q62: 0.955 | T62: 0.992 | W62: 0.961 | Z62: 0.889 | AC62: N/M | AF62: 0.959
B65: (1) Net premiums written for Chaucer do not reflect the June 30, 2015 transfer of $137.4 million of unearned premium reserves previously written by the U.K. motor business.
B66: This transfer of unearned premium reserves is part of the disposal of the U.K. motor business and has no impact on net premiums earned.

Sheet 7
A1: THE HANOVER INSURANCE GROUP
A2: GAAP UNDERWRITING INFORMATION AND RELATED RATIOS
A5: CONSOLIDATED
E10: Q3 | G10: Q4 | I10: Q1 | K10: Q2 | M10: Q3 | O10: Sep-YTD | Q10: Sep-YTD
B11: (In millions, except percentage data) | E11: 2015 | G11: 2015 | I11: 2016 | K11: 2016 | M11: 2016 | O11: 2015 | Q11: 2016
B15: Gross premiums written | D15: $ | E15: 1379700000 | F15: $ | G15: 1174300000 | H15: $ | I15: 1375000000 | J15: $ | K15: 1402000000 | L15: $ | M15: 1402200000 | N15: $ | O15: 4270200000 | P15: $ | Q15: 4179200000
B17: Net premiums written (1) | D17: $ | E17: 1199600000 | F17: $ | G17: 1046100000 | H17: $ | I17: 1144300000 | J17: $ | K17: 1221600000 | L17: $ | M17: 1250900000 | N17: $ | O17: 3708100000 | P17: $ | Q17: 3616800000
B19: Net premiums earned | D19: $ | E19: 1150100000 | F19: $ | G19: 1137900000 | H19: $ | I19: 1151300000 | J19: $ | K19: 1145500000 | L19: $ | M19: 1160900000 | N19: $ | O19: 3566900000 | P19: $ | Q19: 3457700000
B21: Losses and LAE:
B23: Current accident year, excluding catastrophe losses | E23: 667300000 | G23: 666800000 | I23: 678400000 | K23: 663700000 | M23: 673200000 | O23: 2130300000 | Q23: 2015300000
B25: Prior accident year unfavorable (favorable) reserve development, excluding catastrophe losses | E25: -22400000 | G25: -18100000 | I25: -10000000 | K25: 15000000 | M25: -8100000 | O25: -76200000 | Q25: -3100000
B27: Current accident year catastrophe losses | E27: 58200000 | G27: 32200000 | I27: 39900000 | K27: 62300000 | M27: 27600000 | O27: 170900000 | Q27: 129800000
B29: Prior accident year favorable catastrophe loss development | E29: -12400000 | G29: -5500000 | I29: -8700000 | K29: -11300000 | M29: -700000 | O29: -16300000 | Q29: -20700000
B31: Total losses and LAE | E31: 690700000 | G31: 675400000 | I31: 699600000 | K31: 729700000 | M31: 692000000 | O31: 2208700000 | Q31: 2121300000
B33: Amortization of deferred acquisition costs and other underwriting expenses | E33: 404500000 | G33: 409200000 | I33: 397600000 | K33: 388500000 | M33: 405000000 | O33: 1222600000 | Q33: 1191100000
B35: GAAP underwriting profit | D35: $ | E35: 54900000 | F35: $ | G35: 53300000 | H35: $ | I35: 54100000 | J35: $ | K35: 27300000 | L35: $ | M35: 63900000 | N35: $ | O35: 135600000 | P35: $ | Q35: 145300000
B39: Loss and LAE ratio:
B41: Current accident year, excluding catastrophe losses | E41: 0.58 | G41: 0.587 | I41: 0.59 | K41: 0.579 | M41: 0.58 | O41: 0.597 | Q41: 0.583
B43: Prior accident year reserve unfavorable (favorable) development, excluding catastrophe losses | E43: -0.019 | G43: -0.016 | I43: -0.009 | K43: 0.013 | M43: -0.007 | O43: -0.021 | Q43: -0.001
B45: Current accident year catastrophe losses | E45: 0.051 | G45: 0.028 | I45: 0.035 | K45: 0.055 | M45: 0.024 | O45: 0.048 | Q45: 0.038
B47: Prior accident year favorable catastrophe loss development | E47: -0.011 | G47: -0.005 | I47: -0.008 | K47: -0.01 | M47: -0.001 | O47: -0.005 | Q47: -0.006
B49: Total loss and LAE ratio | E49: 0.601 | G49: 0.594 | I49: 0.608 | K49: 0.637 | M49: 0.596 | O49: 0.619 | Q49: 0.614
B51: Expense ratio | E51: 0.348 | G51: 0.356 | I51: 0.342 | K51: 0.336 | M51: 0.346 | O51: 0.34 | Q51: 0.341
B53: Combined ratio | E53: 0.949 | G53: 0.95 | I53: 0.95 | K53: 0.973 | M53: 0.942 | O53: 0.959 | Q53: 0.955
B57: Combined ratio, excluding catastrophe losses | E57: 0.909 | G57: 0.927 | I57: 0.923 | K57: 0.928 | M57: 0.919 | O57: 0.916 | Q57: 0.923
B59: Current accident year combined ratio, excluding catastrophe losses | E59: 0.928 | G59: 0.943 | I59: 0.932 | K59: 0.915 | M59: 0.926 | O59: 0.937 | Q59: 0.924
B62: (1) Net premiums written for Chaucer do not reflect the June 30, 2015 transfer of $137.4 million of unearned premium reserves previously written by the U.K. motor business.
B63: This transfer of unearned premium reserves is part of the disposal of the U.K. motor business and has no impact on net premiums earned.

Sheet 8
A1: THE HANOVER INSURANCE GROUP
A2: GAAP UNDERWRITING AND OPERATING INCOME INFORMATION AND RATIOS
A4: COMMERCIAL LINES
A6: Three Months ended September 30
C10: 2016 | N10: 2015
D13: Multiple | H13: Workers' | O13: Multiple | S13: Workers'
B14: (In millions, except percentage data) | D14: Peril | F14: Auto | H14: Comp | J14: Other | L14: Total | O14: Peril | Q14: Auto | S14: Comp | U14: Other | W14: Total
B17: Net premiums written | C17: $ | D17: 229300000 | E17: $ | F17: 81700000 | G17: $ | H17: 73600000 | I17: $ | J17: 262700000 | K17: $ | L17: 647300000 | N17: $ | O17: 218300000 | P17: $ | Q17: 81700000 | R17: $ | S17: 66000000 | T17: $ | U17: 251600000 | V17: $ | W17: 617600000
B19: Net premiums earned | C19: $ | D19: 195600000 | E19: $ | F19: 76400000 | G19: $ | H19: 69900000 | I19: $ | J19: 245300000 | K19: $ | L19: 587200000 | N19: $ | O19: 185000000 | P19: $ | Q19: 76100000 | R19: $ | S19: 64900000 | T19: $ | U19: 234400000 | V19: $ | W19: 560400000
B21: Losses and LAE:
B23: Current accident year, excluding catastrophe losses | D23: 98300000 | F23: 54400000 | H23: 48000000 | J23: 135300000 | L23: 336000000 | O23: 96900000 | Q23: 52600000 | S23: 44300000 | U23: 130800000 | W23: 324600000
B25: Prior accident year unfavorable (favorable) reserve development, excluding catastrophe losses | D25: 9100000 | F25: 1900000 | H25: -3800000 | J25: 12100000 | L25: 19300000 | O25: 7400000 | Q25: 1700000 | S25: -4800000 | U25: 7500000 | W25: 11800000
B27: Current accident year catastrophe losses | D27: 11500000 | F27: 1700000 | H27: 0 | J27: 3200000 | L27: 16400000 | O27: 4500000 | Q27: -300000 | S27: 0 | U27: 5900000 | W27: 10100000
B29: Prior accident year unfavorable (favorable) catastrophe loss development | D29: 1500000 | F29: 0 | H29: 0 | J29: -200000 | L29: 1300000 | O29: 1600000 | Q29: 0 | S29: 0 | U29: 2100000 | W29: 3700000
B31: Total losses and LAE | D31: 120400000 | F31: 58000000 | H31: 44200000 | J31: 150400000 | L31: 373000000 | O31: 110400000 | Q31: 54000000 | S31: 39500000 | U31: 146300000 | W31: 350200000
B33: Amortization of deferred acquisition costs and other underwriting expenses | L33: 210600000 | W33: 201900000
B35: GAAP underwriting profit | L35: 3600000 | W35: 8300000
B37: Net investment income | L37: 39000000 | W37: 38700000
B39: Other income | L39: 2200000 | W39: 2100000
B41: Other operating expenses | L41: -2300000 | W41: -2000000
B43: Operating income before income taxes | K43: $ | L43: 42500000 | V43: $ | W43: 47100000
S44: .
B48: Loss and LAE ratio:
B50: Current accident year, excluding catastrophe losses | D50: 0.502 | F50: 0.712 | H50: 0.687 | J50: 0.552 | L50: 0.572 | O50: 0.523 | Q50: 0.692 | S50: 0.682 | U50: 0.558 | W50: 0.579
B52: Prior accident year unfavorable (favorable) reserve development, excluding catastrophe losses | D52: 0.047 | F52: 0.025 | H52: -0.054 | J52: 0.049 | L52: 0.033 | O52: 0.04 | Q52: 0.022 | S52: -0.074 | U52: 0.032 | W52: 0.021
B54: Current accident year catastrophe losses | D54: 0.058 | F54: 0.022 | H54: - | J54: 0.013 | L54: 0.028 | O54: 0.024 | Q54: -0.004 | S54: - | U54: 0.025 | W54: 0.018
B56: Prior accident year unfavorable (favorable) catastrophe loss development | D56: 0.008 | F56: - | H56: - | J56: -0.001 | L56: 0.002 | O56: 0.009 | Q56: - | S56: - | U56: 0.009 | W56: 0.007
B57: Total loss and LAE ratio | D57: 0.615 | F57: 0.759 | H57: 0.633 | J57: 0.613 | L57: 0.635 | O57: 0.596 | Q57: 0.71 | S57: 0.608 | U57: 0.624 | W57: 0.625
B59: Expense ratio | L59: 0.357 | W59: 0.358
B61: Combined ratio | L61: 0.992 | W61: 0.983
B65: Change in policies in force | D65: 0.051 | F65: -0.032 | H65: 0.03 | J65: 0.049 | L65: 0.037 | O65: 0.064 | Q65: -0.037 | S65: -0.083 | U65: 0.048 | W65: 0.024
B67: Retention | D67: 0.882 | F67: 0.848 | H67: 0.856 | J67: N/M | L67: 0.87 | O67: 0.872 | Q67: 0.814 | S67: 0.758 | U67: N/M | W67: 0.841

Sheet 9
A1: THE HANOVER INSURANCE GROUP
A2: GAAP UNDERWRITING AND OPERATING INCOME INFORMATION AND RATIOS
A4: COMMERCIAL LINES
A6: Nine Months ended September 30
C10: 2016 | N10: 2015
D13: Multiple | H13: Workers' | O13: Multiple | S13: Workers'
B14: (In millions, except percentage data) | D14: Peril | F14: Auto | H14: Comp | J14: Other | L14: Total | O14: Peril | Q14: Auto | S14: Comp | U14: Other | W14: Total
B17: Net premiums written | C17: $ | D17: 618900000 | E17: $ | F17: 238900000 | G17: $ | H17: 222400000 | I17: $ | J17: 751300000 | K17: $ | L17: 1831500000 | N17: $ | O17: 586800000 | P17: $ | Q17: 237600000 | R17: $ | S17: 207500000 | T17: $ | U17: 736700000 | V17: $ | W17: 1768600000
B19: Net premiums earned | C19: $ | D19: 575200000 | E19: $ | F19: 228900000 | G19: $ | H19: 204400000 | I19: $ | J19: 724800000 | K19: $ | L19: 1733300000 | N19: $ | O19: 543600000 | P19: $ | Q19: 228400000 | R19: $ | S19: 196800000 | T19: $ | U19: 694800000 | V19: $ | W19: 1663600000
B21: Losses and LAE:
B23: Current accident year, excluding catastrophe losses | D23: 282300000 | F23: 160900000 | H23: 138700000 | J23: 387800000 | L23: 969700000 | O23: 284000000 | Q23: 161300000 | S23: 134800000 | U23: 380400000 | W23: 960500000
B25: Prior accident year unfavorable (favorable) reserve development, excluding catastrophe losses | D25: 30500000 | F25: 9100000 | H25: -14700000 | J25: 36600000 | L25: 61500000 | O25: 7600000 | Q25: 6500000 | S25: -11500000 | U25: 16100000 | W25: 18700000
B27: Current accident year catastrophe losses | D27: 42900000 | F27: 2600000 | H27: 0 | J27: 16700000 | L27: 62200000 | O27: 47400000 | Q27: 600000 | S27: 0 | U27: 25300000 | W27: 73300000
B29: Prior accident year unfavorable (favorable) catastrophe loss development | D29: -400000 | F29: 0 | H29: 0 | J29: 700000 | L29: 300000 | O29: -5000000 | Q29: -100000 | S29: 0 | U29: 2700000 | W29: -2400000
B31: Total losses and LAE | D31: 355300000 | F31: 172600000 | H31: 124000000 | J31: 441800000 | L31: 1093700000 | O31: 334000000 | Q31: 168300000 | S31: 123300000 | U31: 424500000 | W31: 1050100000
B33: Amortization of deferred acquisition costs and other underwriting expenses | L33: 627200000 | W33: 602600000
B35: GAAP underwriting profit | L35: 12400000 | W35: 10900000
B37: Net investment income | L37: 117500000 | W37: 116700000
B39: Other income | L39: 6400000 | W39: 6400000
B41: Other operating expenses | L41: -7100000 | W41: -7500000
B43: Operating income before income taxes | K43: $ | L43: 129200000 | V43: $ | W43: 126500000
B48: Loss and LAE ratio:
B50: Current accident year, excluding catastrophe losses | D50: 0.491 | F50: 0.703 | H50: 0.679 | J50: 0.536 | L50: 0.56 | O50: 0.523 | Q50: 0.707 | S50: 0.684 | U50: 0.548 | W50: 0.577
B52: Prior accident year unfavorable (favorable) reserve development, excluding catastrophe losses | D52: 0.053 | F52: 0.04 | H52: -0.072 | J52: 0.05 | L52: 0.035 | O52: 0.014 | Q52: 0.028 | S52: -0.058 | U52: 0.023 | W52: 0.011
B54: Current accident year catastrophe losses | D54: 0.075 | F54: 0.011 | H54: - | J54: 0.023 | L54: 0.036 | O54: 0.087 | Q54: 0.002 | S54: - | U54: 0.036 | W54: 0.044
B56: Prior accident year unfavorable (favorable) catastrophe loss development | D56: -0.001 | F56: - | H56: - | J56: 0.001 | L56: 0 | O56: -0.009 | Q56: 0 | S56: - | U56: 0.004 | W56: -0.001
B57: Total loss and LAE ratio | D57: 0.618 | F57: 0.754 | H57: 0.607 | J57: 0.61 | L57: 0.631 | O57: 0.615 | Q57: 0.737 | S57: 0.626 | U57: 0.611 | W57: 0.631
B59: Expense ratio | L59: 0.36 | W59: 0.361
B61: Combined ratio | L61: 0.991 | W61: 0.992
B65: Change in policies in force | D65: 0.051 | F65: -0.032 | H65: 0.03 | J65: 0.049 | L65: 0.037 | O65: 0.064 | Q65: -0.037 | S65: -0.083 | U65: 0.048 | W65: 0.024
B67: Retention | D67: 0.868 | F67: 0.815 | H67: 0.803 | J67: N/M | L67: 0.845 | O67: 0.864 | Q67: 0.812 | S67: 0.773 | U67: N/M | W67: 0.837

Sheet 10
A1: THE HANOVER INSURANCE GROUP
A2: GAAP UNDERWRITING INFORMATION AND RELATED RATIOS
A5: COMMERCIAL LINES
E10: Q3 | G10: Q4 | I10: Q1 | K10: Q2 | M10: Q3 | O10: Sep-YTD | Q10: Sep-YTD
B11: (In millions, except percentage data) | E11: 2015 | G11: 2015 | I11: 2016 | K11: 2016 | M11: 2016 | O11: 2015 | Q11: 2016
B14: Gross premiums written | D14: $ | E14: 701200000 | F14: $ | G14: 592400000 | H14: $ | I14: 680100000 | J14: $ | K14: 662900000 | L14: $ | M14: 730000000 | N14: $ | O14: 2000100000 | P14: $ | Q14: 2073000000
B16: Net premiums written | D16: $ | E16: 617600000 | F16: $ | G16: 513300000 | H16: $ | I16: 604300000 | J16: $ | K16: 579900000 | L16: $ | M16: 647300000 | N16: $ | O16: 1768600000 | P16: $ | Q16: 1831500000
B18: Net premiums earned | D18: $ | E18: 560400000 | F18: $ | G18: 563400000 | H18: $ | I18: 571400000 | J18: $ | K18: 574700000 | L18: $ | M18: 587200000 | N18: $ | O18: 1663600000 | P18: $ | Q18: 1733300000
B20: Losses and LAE:
B22: Current accident year, excluding catastrophe losses | E22: 324600000 | G22: 330700000 | I22: 320800000 | K22: 312900000 | M22: 336000000 | O22: 960500000 | Q22: 969700000
B24: Prior accident year unfavorable reserve development, excluding catastrophe losses | E24: 11800000 | G24: 26500000 | I24: 20100000 | K24: 22100000 | M24: 19300000 | O24: 18700000 | Q24: 61500000
B26: Current accident year catastrophe losses | E26: 10100000 | G26: 13400000 | I26: 19200000 | K26: 26600000 | M26: 16400000 | O26: 73300000 | Q26: 62200000
B28: Prior accident year unfavorable (favorable) catastrophe loss development | E28: 3700000 | G28: 4400000 | I28: -300000 | K28: -700000 | M28: 1300000 | O28: -2400000 | Q28: 300000
B30: Total losses and LAE | E30: 350200000 | G30: 375000000 | I30: 359800000 | K30: 360900000 | M30: 373000000 | O30: 1050100000 | Q30: 1093700000
B32: Amortization of deferred acquisition costs and other underwriting expenses | E32: 201900000 | G32: 212000000 | I32: 207900000 | K32: 208700000 | M32: 210600000 | O32: 602600000 | Q32: 627200000
E33: 0
B34: GAAP underwriting profit (loss) | D34: $ | E34: 8300000 | F34: $ | G34: -23600000 | H34: $ | I34: 3700000 | J34: $ | K34: 5100000 | L34: $ | M34: 3600000 | N34: $ | O34: 10900000 | P34: $ | Q34: 12400000
B38: Loss and LAE ratio:
B40: Current accident year, excluding catastrophe losses | E40: 0.579 | G40: 0.587 | I40: 0.562 | K40: 0.545 | M40: 0.572 | O40: 0.577 | Q40: 0.56
B42: Prior accident year unfavorable reserve development, excluding catastrophe losses | E42: 0.021 | G42: 0.047 | I42: 0.035 | K42: 0.038 | M42: 0.033 | O42: 0.011 | Q42: 0.035
B44: Current accident year catastrophe losses | E44: 0.018 | G44: 0.024 | I44: 0.034 | K44: 0.046 | M44: 0.028 | O44: 0.044 | Q44: 0.036
B46: Prior accident year unfavorable (favorable) catastrophe loss development | E46: 0.007 | G46: 0.008 | I46: -0.001 | K46: -0.001 | M46: 0.002 | O46: -0.001 | Q46: 0
B48: Total loss and LAE ratio | E48: 0.625 | G48: 0.666 | I48: 0.63 | K48: 0.628 | M48: 0.635 | O48: 0.631 | Q48: 0.631
B50: Expense ratio | E50: 0.358 | G50: 0.374 | I50: 0.362 | K50: 0.361 | M50: 0.357 | O50: 0.361 | Q50: 0.36
B52: Combined ratio | E52: 0.983 | G52: 1.04 | I52: 0.992 | K52: 0.989 | M52: 0.992 | O52: 0.992 | Q52: 0.991
B56: Combined ratio, excluding catastrophe losses | E56: 0.958 | G56: 1.008 | I56: 0.959 | K56: 0.944 | M56: 0.962 | O56: 0.949 | Q56: 0.955
B58: Current accident year combined ratio, excluding catastrophe losses | E58: 0.937 | G58: 0.961 | I58: 0.924 | K58: 0.906 | M58: 0.929 | O58: 0.938 | Q58: 0.92

Sheet 11
A1: THE HANOVER INSURANCE GROUP
A2: GAAP UNDERWRITING AND OPERATING INCOME INFORMATION AND RATIOS
A4: PERSONAL LINES
A6: Three Months ended September 30
D10: 2016 | M10: 2015
A14: (In millions, except percentage data) | E14: Auto | G14: Home | I14: Other | K14: Total | N14: Auto | P14: Home | R14: Other | T14: Total
B17: Net premiums written | D17: $ | E17: 249600000 | F17: $ | G17: 147500000 | H17: $ | I17: 10400000 | J17: $ | K17: 407500000 | M17: $ | N17: 232300000 | O17: $ | P17: 140700000 | Q17: $ | R17: 10300000 | S17: $ | T17: 383300000
B19: Net premiums earned | D19: $ | E19: 231700000 | F19: $ | G19: 130500000 | H19: $ | I19: 9300000 | J19: $ | K19: 371500000 | M19: $ | N19: 223000000 | O19: $ | P19: 126200000 | Q19: $ | R19: 9400000 | S19: $ | T19: 358600000
B21: Losses and LAE:
B23: Current accident year, excluding catastrophe losses | E23: 164000000 | G23: 60500000 | I23: 2200000 | K23: 226700000 | N23: 155300000 | P23: 61100000 | R23: 3000000 | T23: 219400000
B25: Prior accident year unfavorable (favorable) reserve development, excluding catastrophe losses | E25: -1300000 | G25: 0 | I25: 200000 | K25: -1100000 | N25: -1500000 | P25: 0 | R25: -1000000 | T25: -2500000
B27: Current accident year catastrophe losses | E27: 3700000 | G27: 7000000 | I27: 100000 | K27: 10800000 | N27: 2200000 | P27: 16200000 | R27: 500000 | T27: 18900000
B29: Prior accident year unfavorable catastrophe loss development | E29: 0 | G29: 1500000 | I29: 0 | K29: 1500000 | N29: 0 | P29: 1200000 | R29: 0 | T29: 1200000
B31: Total losses and LAE | E31: 166400000 | G31: 69000000 | I31: 2500000 | K31: 237900000 | N31: 156000000 | P31: 78500000 | R31: 2500000 | T31: 237000000
B33: Amortization of deferred acquisition costs and other underwriting expenses | K33: 110300000 | T33: 103700000
B35: GAAP underwriting profit | K35: 23300000 | T35: 17900000
B37: Net investment income | K37: 17100000 | T37: 18000000
B39: Other income | K39: 2900000 | T39: 3100000
B41: Other operating expenses | K41: -1600000 | T41: -1800000
B43: Operating income before income taxes | J43: $ | K43: 41700000 | S43: $ | T43: 37200000
B48: Loss and LAE ratio:
B50: Current accident year, excluding catastrophe losses | E50: 0.708 | G50: 0.464 | I50: 0.236 | K50: 0.611 | N50: 0.696 | P50: 0.484 | R50: 0.319 | T50: 0.612
B52: Prior accident year unfavorable (favorable) reserve development, excluding catastrophe losses | E52: -0.006 | G52: - | I52: 0.022 | K52: -0.003 | N52: -0.007 | P52: - | R52: -0.106 | T52: -0.007
B54: Current accident year catastrophe losses | E54: 0.016 | G54: 0.054 | I54: 0.011 | K54: 0.029 | N54: 0.01 | P54: 0.128 | R54: 0.053 | T54: 0.053
B56: Prior accident year unfavorable catastrophe loss development | E56: - | G56: 0.011 | I56: - | K56: 0.004 | N56: - | P56: 0.01 | R56: - | T56: 0.003
B57: Total loss and LAE ratio | E57: 0.718 | G57: 0.529 | I57: 0.269 | K57: 0.641 | N57: 0.699 | P57: 0.622 | R57: 0.266 | T57: 0.661
B59: Expense ratio | K59: 0.29 | T59: 0.281
B61: Combined ratio | K61: 0.931 | T61: 0.942
B65: Change in policies in force | E65: -0.006 | G65: 0.003 | I65: -0.117 | K65: -0.006 | N65: -0.025 | P65: -0.018 | R65: -0.123 | T65: -0.026
B67: Retention | E67: 0.841 | G67: 0.819 | I67: N/M | K67: 0.831 | N67: 0.827 | P67: 0.808 | R67: N/M | T67: 0.818

Sheet 12
A1: THE HANOVER INSURANCE GROUP
A2: GAAP UNDERWRITING AND OPERATING INCOME INFORMATION AND RATIOS
A4: PERSONAL LINES
A6: Nine Months ended September 30
D10: 2016 | M10: 2015
A14: (In millions, except percentage data) | E14: Auto | G14: Home | I14: Other | K14: Total | N14: Auto | P14: Home | R14: Other | T14: Total
B17: Net premiums written | D17: $ | E17: 717200000 | F17: $ | G17: 394000000 | H17: $ | I17: 28600000 | J17: $ | K17: 1139800000 | M17: $ | N17: 681500000 | O17: $ | P17: 377800000 | Q17: $ | R17: 28700000 | S17: $ | T17: 1088000000
B19: Net premiums earned | D19: $ | E19: 679900000 | F19: $ | G19: 386400000 | H19: $ | I19: 28500000 | J19: $ | K19: 1094800000 | M19: $ | N19: 661800000 | O19: $ | P19: 377300000 | Q19: $ | R19: 29100000 | S19: $ | T19: 1068200000
B21: Losses and LAE:
B23: Current accident year, excluding catastrophe losses | E23: 481200000 | G23: 172200000 | I23: 10200000 | K23: 663600000 | N23: 469000000 | P23: 189000000 | R23: 10200000 | T23: 668200000
B25: Prior accident year unfavorable (favorable) reserve development, excluding catastrophe losses | E25: -3400000 | G25: 800000 | I25: 1700000 | K25: -900000 | N25: -4300000 | P25: -1400000 | R25: -900000 | T25: -6600000
B27: Current accident year catastrophe losses | E27: 5300000 | G27: 25400000 | I27: 300000 | K27: 31000000 | N27: 3300000 | P27: 54000000 | R27: 900000 | T27: 58200000
B29: Prior accident year unfavorable (favorable) catastrophe loss development | E29: -100000 | G29: 4300000 | I29: 100000 | K29: 4300000 | N29: 0 | P29: 8300000 | R29: 0 | T29: 8300000
B31: Total losses and LAE | E31: 483000000 | G31: 202700000 | I31: 12300000 | K31: 698000000 | N31: 468000000 | P31: 249900000 | R31: 10200000 | T31: 728100000
B33: Amortization of deferred acquisition costs and other underwriting expenses | K33: 315600000 | T33: 305800000
B35: GAAP underwriting profit | K35: 81200000 | T35: 34300000
B37: Net investment income | K37: 51600000 | T37: 54200000
B39: Other income | K39: 8400000 | T39: 9000000
B41: Other operating expenses | K41: -5000000 | T41: -5900000
B43: Operating income before income taxes | J43: $ | K43: 136200000 | S43: $ | T43: 91600000
B48: Loss and LAE ratio:
B50: Current accident year, excluding catastrophe losses | E50: 0.708 | G50: 0.445 | I50: 0.358 | K50: 0.606 | N50: 0.708 | P50: 0.501 | R50: 0.351 | T50: 0.626
B52: Prior accident year unfavorable (favorable) reserve development, excluding catastrophe losses | E52: -0.005 | G52: 0.002 | I52: 0.06 | K52: -0.001 | N52: -0.006 | P52: -0.004 | R52: -0.031 | T52: -0.006
B54: Current accident year catastrophe losses | E54: 0.008 | G54: 0.066 | I54: 0.01 | K54: 0.028 | N54: 0.005 | P54: 0.143 | R54: 0.031 | T54: 0.054
B56: Prior accident year unfavorable catastrophe loss development | E56: 0 | G56: 0.011 | I56: 0.004 | K56: 0.004 | N56: - | P56: 0.022 | R56: - | T56: 0.008
B57: Total loss and LAE ratio | E57: 0.711 | G57: 0.524 | I57: 0.432 | K57: 0.637 | N57: 0.707 | P57: 0.662 | R57: 0.351 | T57: 0.682
B59: Expense ratio | K59: 0.282 | T59: 0.279
B61: Combined ratio | K61: 0.919 | T61: 0.961
B65: Change in policies in force | E65: -0.006 | G65: 0.003 | I65: -0.117 | K65: -0.006 | N65: -0.025 | P65: -0.018 | R65: -0.123 | T65: -0.026
B67: Retention | E67: 0.843 | G67: 0.82 | I67: N/M | K67: 0.832 | N67: 0.834 | P67: 0.808 | R67: N/M | T67: 0.823

Sheet 13
A1: THE HANOVER INSURANCE GROUP
A2: GAAP UNDERWRITING INFORMATION AND RELATED RATIOS
A5: PERSONAL LINES
E10: Q3 | G10: Q4 | I10: Q1 | K10: Q2 | M10: Q3 | O10: Sep-YTD | Q10: Sep-YTD
A11: (In millions, except percentage data) | E11: 2015 | G11: 2015 | I11: 2016 | K11: 2016 | M11: 2016 | O11: 2015 | Q11: 2016
B15: Gross premiums written | D15: $ | E15: 403000000 | F15: $ | G15: 376600000 | H15: $ | I15: 356800000 | J15: $ | K15: 416600000 | L15: $ | M15: 428700000 | N15: $ | O15: 1153900000 | P15: $ | Q15: 1202100000
B17: Net premiums written | D17: $ | E17: 383300000 | F17: $ | G17: 357600000 | H17: $ | I17: 337000000 | J17: $ | K17: 395300000 | L17: $ | M17: 407500000 | N17: $ | O17: 1088000000 | P17: $ | Q17: 1139800000
B19: Net premiums earned | D19: $ | E19: 358600000 | F19: $ | G19: 358400000 | H19: $ | I19: 358600000 | J19: $ | K19: 364700000 | L19: $ | M19: 371500000 | N19: $ | O19: 1068200000 | P19: $ | Q19: 1094800000
B21: Losses and LAE:
B23: Current accident year, excluding catastrophe losses | E23: 219400000 | G23: 217600000 | I23: 215700000 | K23: 221200000 | M23: 226700000 | O23: 668200000 | Q23: 663600000
B25: Prior accident year unfavorable (favorable) reserve development, excluding catastrophe losses | E25: -2500000 | G25: -13100000 | I25: -700000 | K25: 900000 | M25: -1100000 | O25: -6600000 | Q25: -900000
B27: Current accident year catastrophe losses | E27: 18900000 | G27: 8500000 | I27: 10500000 | K27: 9700000 | M27: 10800000 | O27: 58200000 | Q27: 31000000
B29: Prior accident year unfavorable catastrophe loss development | E29: 1200000 | G29: 800000 | I29: 1300000 | K29: 1500000 | M29: 1500000 | O29: 8300000 | Q29: 4300000
B31: Total losses and LAE | E31: 237000000 | G31: 213800000 | I31: 226800000 | K31: 233300000 | M31: 237900000 | O31: 728100000 | Q31: 698000000
B33: Amortization of deferred acquisition costs and other underwriting expenses | E33: 103700000 | G33: 106900000 | I33: 103200000 | K33: 102100000 | M33: 110300000 | O33: 305800000 | Q33: 315600000
B35: GAAP underwriting profit | D35: $ | E35: 17900000 | F35: $ | G35: 37700000 | H35: $ | I35: 28600000 | J35: $ | K35: 29300000 | L35: $ | M35: 23300000 | N35: $ | O35: 34300000 | P35: $ | Q35: 81200000
B39: Loss and LAE ratio:
B41: Current accident year, excluding catastrophe losses | E41: 0.612 | G41: 0.608 | I41: 0.602 | K41: 0.607 | M41: 0.611 | O41: 0.626 | Q41: 0.606
B43: Prior accident year unfavorable (favorable) reserve development, excluding catastrophe losses | E43: -0.007 | G43: -0.037 | I43: -0.002 | K43: 0.002 | M43: -0.003 | O43: -0.006 | Q43: -0.001
B45: Current accident year catastrophe losses | E45: 0.053 | G45: 0.024 | I45: 0.029 | K45: 0.027 | M45: 0.029 | O45: 0.054 | Q45: 0.028
B47: Prior accident year unfavorable catastrophe loss development | E47: 0.003 | G47: 0.002 | I47: 0.004 | K47: 0.004 | M47: 0.004 | O47: 0.008 | Q47: 0.004
B49: Total loss and LAE ratio | E49: 0.661 | G49: 0.597 | I49: 0.633 | K49: 0.64 | M49: 0.641 | O49: 0.682 | Q49: 0.637
B51: Expense ratio | E51: 0.281 | G51: 0.291 | I51: 0.281 | K51: 0.273 | M51: 0.29 | O51: 0.279 | Q51: 0.282
B53: Combined ratio | E53: 0.942 | G53: 0.888 | I53: 0.914 | K53: 0.913 | M53: 0.931 | O53: 0.961 | Q53: 0.919
B57: Combined ratio, excluding catastrophe losses | E57: 0.886 | G57: 0.862 | I57: 0.881 | K57: 0.882 | M57: 0.898 | O57: 0.899 | Q57: 0.887
B59: Current accident year combined ratio, excluding catastrophe losses | E59: 0.893 | G59: 0.899 | I59: 0.883 | K59: 0.88 | M59: 0.901 | O59: 0.905 | Q59: 0.888

Sheet 14
A1: THE HANOVER INSURANCE GROUP
A2: GAAP UNDERWRITING AND OPERATING INCOME INFORMATION AND RATIOS
A4: CHAUCER
A6: Three Months ended September 30
D10: 2016 | Q10: 2015
G12: Marine & | K12: UK | M12: Casualty | T12: Marine & | X12: UK | Z12: Casualty
B13: (In millions, except percentage data) | E13: Property | G13: Aviation | I13: Energy | K13: Motor | M13: & Other | O13: Total | R13: Property | T13: Aviation | V13: Energy | X13: Motor | Z13: & Other | AB13: Total
B16: Gross premiums written | D16: $ | E16: 39600000 | F16: $ | G16: 85600000 | H16: $ | I16: 28800000 | J16: $ | K16: 200000 | L16: $ | M16: 89500000 | N16: $ | O16: 243500000 | Q16: $ | R16: 32400000 | S16: $ | T16: 81500000 | U16: $ | V16: 28900000 | W16: $ | X16: 46300000 | Y16: $ | Z16: 86400000 | AA16: $ | AB16: 275500000
B18: Net premiums written | D18: $ | E18: 34500000 | F18: $ | G18: 67000000 | H18: $ | I18: 18800000 | J18: $ | K18: 0 | L18: $ | M18: 75800000 | N18: $ | O18: 196100000 | Q18: $ | R18: 29500000 | S18: $ | T18: 70400000 | U18: $ | V18: 21400000 | W18: $ | X18: 0 | Y18: $ | Z18: 77400000 | AA18: $ | AB18: 198700000
B20: Net premiums earned | D20: $ | E20: 38800000 | F20: $ | G20: 66800000 | H20: $ | I20: 25200000 | J20: $ | K20: 0 | L20: $ | M20: 71400000 | N20: $ | O20: 202200000 | Q20: $ | R20: 42500000 | S20: $ | T20: 71200000 | U20: $ | V20: 41100000 | W20: $ | X20: 0 | Y20: $ | Z20: 76300000 | AA20: $ | AB20: 231100000
B22: Losses and LAE:
B24: Current accident year, excluding catastrophe losses | O24: 110400000 | AB24: 123300000
B26: Prior accident year favorable reserve development, excluding catastrophe losses | O26: -26600000 | AB26: -32100000
B28: Current accident year catastrophe losses | O28: 400000 | AB28: 29200000
B30: Prior accident year favorable catastrophe loss development | O30: -3500000 | AB30: -17300000
B32: Total losses and LAE | O32: 80700000 | AB32: 103100000
B34: Amortization of deferred acquisition costs and other underwriting expenses | O34: 83700000 | AB34: 98400000
B36: GAAP underwriting profit | O36: 37800000 | AB36: 29600000
B38: Net investment income | O38: 10300000 | AB38: 10500000
B40: Other income | O40: 2500000 | AB40: 1100000
B42: Other operating expenses | O42: -2200000 | AB42: 0
B44: Operating income before income taxes | N44: $ | O44: 48400000 | AA44: $ | AB44: 41200000
B49: Loss and LAE ratio:
B51: Current accident year, excluding catastrophe losses | O51: 0.546 | AB51: 0.534
B53: Prior accident year favorable reserve development, excluding catastrophe losses | O53: -0.132 | AB53: -0.139
B55: Current accident year catastrophe losses | O55: 0.002 | AB55: 0.126
B57: Prior accident year favorable catastrophe loss development | O57: -0.017 | AB57: -0.075
B58: Total loss and LAE ratio | O58: 0.399 | AB58: 0.446
B60: Expense ratio | O60: 0.414 | AB60: 0.426
B62: Combined ratio | O62: 0.813 | AB62: 0.872

Sheet 15
A1: THE HANOVER INSURANCE GROUP
A2: GAAP UNDERWRITING AND OPERATING INCOME INFORMATION AND RATIOS
A4: CHAUCER
A6: Nine Months ended September 30
D10: 2016 | Q10: 2015
G12: Marine & | K12: UK | M12: Casualty | T12: Marine & | X12: UK | Z12: Casualty
B13: (In millions, except percentage data) | E13: Property | G13: Aviation | I13: Energy | K13: Motor | M13: & Other | O13: Total | R13: Property | T13: Aviation | V13: Energy | X13: Motor | Z13: & Other | AB13: Total
B16: Gross premiums written | D16: $ | E16: 214700000 | F16: $ | G16: 281800000 | H16: $ | I16: 131700000 | J16: $ | K16: -1100000 | L16: $ | M16: 275900000 | N16: $ | O16: 904100000 | Q16: $ | R16: 212700000 | S16: $ | T16: 277600000 | U16: $ | V16: 162700000 | W16: $ | X16: 185900000 | Y16: $ | Z16: 277300000 | AA16: $ | AB16: 1116200000
B18: Net premiums written (1) | D18: $ | E18: 127600000 | F18: $ | G18: 205200000 | H18: $ | I18: 76200000 | J18: $ | K18: 0 | L18: $ | M18: 236500000 | N18: $ | O18: 645500000 | Q18: $ | R18: 143200000 | S18: $ | T18: 224200000 | U18: $ | V18: 107100000 | W18: $ | X18: 129100000 | Y18: $ | Z18: 247900000 | AA18: $ | AB18: 851500000
B20: Net premiums earned | D20: $ | E20: 109900000 | F20: $ | G20: 195000000 | H20: $ | I20: 100800000 | J20: $ | K20: 0 | L20: $ | M20: 223900000 | N20: $ | O20: 629600000 | Q20: $ | R20: 125700000 | S20: $ | T20: 214000000 | U20: $ | V20: 140000000 | W20: $ | X20: 135400000 | Y20: $ | Z20: 220000000 | AA20: $ | AB20: 835100000
B22: Losses and LAE:
B24: Current accident year, excluding catastrophe losses | O24: 381900000 | AB24: 501500000
B26: Prior accident year favorable reserve development, excluding catastrophe losses | O26: -64600000 | AB26: -89300000
B28: Current accident year catastrophe losses | O28: 36600000 | AB28: 39400000
B30: Prior accident year favorable catastrophe loss development | O30: -25300000 | AB30: -22200000
B32: Total losses and LAE | O32: 328600000 | AB32: 429400000
B34: Amortization of deferred acquisition costs and other underwriting expenses | O34: 247200000 | AB34: 313000000
B36: GAAP underwriting profit | O36: 53800000 | AB36: 92700000
B38: Net investment income | O38: 32300000 | AB38: 34800000
B40: Other income | O40: 6000000 | AB40: 5600000
B42: Other operating expenses | O42: -4500000 | AB42: -700000
B44: Operating income before income taxes | N44: $ | O44: 87600000 | AA44: $ | AB44: 132400000
B49: Loss and LAE ratio:
B51: Current accident year, excluding catastrophe losses | O51: 0.607 | AB51: 0.6
B53: Prior accident year favorable reserve development, excluding catastrophe losses | O53: -0.103 | AB53: -0.107
B55: Current accident year catastrophe losses | O55: 0.058 | AB55: 0.047
B57: Prior accident year favorable catastrophe loss development | O57: -0.04 | AB57: -0.026
B58: Total loss and LAE ratio | O58: 0.522 | AB58: 0.514
B60: Expense ratio | O60: 0.393 | AB60: 0.375
B62: Combined ratio | O62: 0.915 | AB62: 0.889
B65: (1) Net premiums written for Chaucer do not reflect the June 30, 2015 transfer of $137.4 million of unearned premium reserves previously written by the U.K. motor business. This transfer of unearned premium reserves is part of the disposal of the U.K. motor business and has no impact on net premiums earned.

Sheet 16
A1: THE HANOVER INSURANCE GROUP
A2: GAAP UNDERWRITING INFORMATION AND RELATED RATIOS
A5: CHAUCER
D10: Q3 | F10: Q4 | H10: Q1 | J10: Q2 | L10: Q3 | N10: Sep-YTD | P10: Sep-YTD
B11: (In millions, except percentage data) | D11: 2015 | F11: 2015 | H11: 2016 | J11: 2016 | L11: 2016 | N11: 2015 | P11: 2016
B15: Gross premiums written | C15: $ | D15: 275500000 | E15: $ | F15: 205300000 | G15: $ | H15: 338100000 | I15: $ | J15: 322500000 | K15: $ | L15: 243500000 | M15: $ | N15: 1116200000 | O15: $ | P15: 904100000
B17: Net premiums written (1) | C17: $ | D17: 198700000 | E17: $ | F17: 175200000 | G17: $ | H17: 203000000 | I17: $ | J17: 246400000 | K17: $ | L17: 196100000 | M17: $ | N17: 851500000 | O17: $ | P17: 645500000
B19: Net premiums earned | C19: $ | D19: 231100000 | E19: $ | F19: 216100000 | G19: $ | H19: 221300000 | I19: $ | J19: 206100000 | K19: $ | L19: 202200000 | M19: $ | N19: 835100000 | O19: $ | P19: 629600000
B21: Losses and LAE:
B23: Current accident year, excluding catastrophe losses | D23: 123300000 | F23: 118500000 | H23: 141900000 | J23: 129600000 | L23: 110400000 | N23: 501500000 | P23: 381900000
B25: Prior accident year favorable reserve development, excluding catastrophe losses | D25: -32100000 | F25: -30800000 | H25: -29700000 | J25: -8300000 | L25: -26600000 | N25: -89300000 | P25: -64600000
B27: Current accident year catastrophe losses | D27: 29200000 | F27: 10300000 | H27: 10200000 | J27: 26000000 | L27: 400000 | N27: 39400000 | P27: 36600000
B29: Prior accident year favorable catastrophe loss development | D29: -17300000 | F29: -10700000 | H29: -9700000 | J29: -12100000 | L29: -3500000 | N29: -22200000 | P29: -25300000
B31: Total losses and LAE | D31: 103100000 | F31: 87300000 | H31: 112700000 | J31: 135200000 | L31: 80700000 | N31: 429400000 | P31: 328600000
B33: Amortization of deferred acquisition costs and other underwriting expenses | D33: 98400000 | F33: 90000000 | H33: 86100000 | J33: 77400000 | L33: 83700000 | N33: 313000000 | P33: 247200000
B35: GAAP underwriting profit (loss) | C35: $ | D35: 29600000 | E35: $ | F35: 38800000 | G35: $ | H35: 22500000 | I35: $ | J35: -6500000 | K35: $ | L35: 37800000 | M35: $ | N35: 92700000 | O35: $ | P35: 53800000
B39: Loss and LAE ratio:
B41: Current accident year, excluding catastrophe losses | D41: 0.534 | F41: 0.549 | H41: 0.641 | J41: 0.629 | L41: 0.546 | N41: 0.6 | P41: 0.607
B43: Prior accident year favorable reserve development, excluding catastrophe losses | D43: -0.139 | F43: -0.143 | H43: -0.134 | J43: -0.04 | L43: -0.132 | N43: -0.107 | P43: -0.103
B45: Current accident year catastrophe losses | D45: 0.126 | F45: 0.048 | H45: 0.046 | J45: 0.126 | L45: 0.002 | N45: 0.047 | P45: 0.058
B47: Prior accident year favorable catastrophe loss development | D47: -0.075 | F47: -0.05 | H47: -0.044 | J47: -0.059 | L47: -0.017 | N47: -0.026 | P47: -0.04
B49: Total loss and LAE ratio | D49: 0.446 | F49: 0.404 | H49: 0.509 | J49: 0.656 | L49: 0.399 | N49: 0.514 | P49: 0.522
B51: Expense ratio | D51: 0.426 | F51: 0.416 | H51: 0.389 | J51: 0.376 | L51: 0.414 | N51: 0.375 | P51: 0.393
B53: Combined ratio | D53: 0.872 | F53: 0.82 | H53: 0.898 | J53: 1.032 | L53: 0.813 | N53: 0.889 | P53: 0.915
B57: Combined ratio, excluding catastrophe losses | D57: 0.821 | F57: 0.822 | H57: 0.896 | J57: 0.965 | L57: 0.828 | N57: 0.868 | P57: 0.897
B59: Current accident year combined ratio, excluding catastrophe losses | D59: 0.96 | F59: 0.965 | H59: 1.03 | J59: 1.005 | L59: 0.96 | N59: 0.975 | P59: 1
B63: (1) Net premiums written for Chaucer do not reflect the June 30, 2015 transfer of $137.4 million of unearned premium reserves previously written by the U.K. motor business. This transfer of unearned premium reserves is part of the disposal of the U.K. motor business and has no impact on net premiums earned.

Sheet 17
A1: THE HANOVER INSURANCE GROUP
A2: NET INVESTMENT INCOME AND YIELDS
D6: Q3 | F6: Q4 | H6: Q1 | J6: Q2 | L6: Q3 | N6: YTD | P6: YTD
A7: (In millions, except yields) | D7: 2015 | F7: 2015 | H7: 2016 | J7: 2016 | L7: 2016 | N7: 2015 | P7: 2016
A9: Net Investment Income
A10: Fixed maturities | D10: 62.5 | F10: 63 | H10: 61.1 | J10: 61.3 | L10: 59.8 | N10: 190.8 | P10: 182.2
A11: Equity securities | D11: 4.2 | F11: 4.6 | H11: 4.3 | J11: 4.8 | L11: 4.4 | N11: 12.9 | P11: 13.5
A12: Other investments | D12: 4 | F12: 5.2 | H12: 5.6 | J12: 5.7 | L12: 6.4 | N12: 12.9 | P12: 17.7
A13: Investment expenses | D13: -2.4 | F13: -2.8 | H13: -2.7 | J13: -2.7 | L13: -2.8 | N13: -7.5 | P13: -8.2
A14: Total | D14: 68.3 | F14: 70 | H14: 68.3 | J14: 69.1 | L14: 67.8 | N14: 209.1 | P14: 205.2
A17: Pre-tax Yields
A19: Fixed maturities | D19: 0.0364 | F19: 0.0363 | H19: 0.0354 | J19: 0.0356 | L19: 0.0343 | N19: 0.0361 | P19: 0.0351
A20: Total | D20: 0.0345 | F20: 0.0347 | H20: 0.034 | J20: 0.0339 | L20: 0.0331 | N20: 0.0343 | P20: 0.0336
A24: Pre-tax yields are calculated as annualized net investment income divided by the average of investment balances, excluding unrealized capital gains and losses, at the end of each month during the period.

Sheet 18
B1: THE HANOVER INSURANCE GROUP
B2: INVESTMENT PORTFOLIO
B3: September 30, 2016
B7: (In millions)
I8: Change in | J8: Change in
D9: Weighted | H9: Net | I9: Net | J9: Net
D10: Average | E10: Amortized | F10: Fair | G10: % of | H10: Unrealized | I10: Unrealized | J10: Unrealized
B11: Investment Type | D11: Quality | E11: Cost or Cost | F11: Value | G11: Total | H11: Gain | I11: During Q3 | J11: YTD
B13: Fixed maturities:
B14: U.S. Treasury and government agencies | D14: AAA | E14: 311.1 | F14: 320.4 | G14: 0.036 | H14: 9.3 | I14: -2.3 | J14: 7.3
B15: Foreign government | D15: AA+ | E15: 234.5 | F15: 242.7 | G15: 0.028 | H15: 8.2 | I15: 1 | J15: 7.1
B16: Municipals:
C17: Taxable | D17: AA | E17: 963.2 | F17: 1023.9 | G17: 0.116 | H17: 60.7 | I17: -9.7 | J17: 17.8
C18: Tax exempt | D18: AA | E18: 108.6 | F18: 112.5 | G18: 0.013 | H18: 3.9 | I18: -1 | J18: 1
B19: Corporate:
B20: NAIC 1 | C20: NAIC 1 | D20: A | E20: 1665.3 | F20: 1741.1 | G20: 0.197 | H20: 75.8 | I20: -3.6 | J20: 43.9
B21: NAIC 2 | C21: NAIC 2 | D21: BBB | E21: 1859.6 | F21: 1938 | G21: 0.22 | H21: 78.4 | I21: 7.3 | J21: 79.8
B22: NAIC 3 and below | C22: NAIC 3 and below | D22: B+ | E22: 412.5 | F22: 429.1 | G22: 0.049 | H22: 16.6 | I22: 13.2 | J22: 56
B23: Total corporate | D23: BBB+ | E23: 3937.4 | F23: 4108.2 | G23: 0.466 | H23: 170.8 | I23: 16.9 | J23: 179.7
B24: Asset backed:
C25: Residential mortgage-backed | D25: AAA | E25: 921.8 | F25: 944.3 | G25: 0.107 | H25: 22.5 | I25: -2.7 | J25: 14
C26: Commercial mortgage-backed | D26: AAA | E26: 546.5 | F26: 569.8 | G26: 0.065 | H26: 23.3 | I26: -2.1 | J26: 21.8
C27: Asset-backed | D27: AAA | E27: 77.3 | F27: 78.4 | G27: 0.009 | H27: 1.1 | I27: 0.5 | J27: 1.7
B28: Total fixed maturities | D28: A+ | E28: 7100.4 | F28: 7400.2 | G28: 0.84 | H28: 299.8 | I28: 0.6 | J28: 250.4
B29: Equity securities | E29: 533.6 | F29: 612.5 | G29: 0.069 | H29: 78.9 | I29: 4 | J29: 30.8
B30: Other investments | E30: 480 | F30: 483.4 | G30: 0.055 | H30: 3.4 | I30: 0 | J30: 0
B31: Total investments | E31: 8114 | F31: 8496.1 | G31: 0.964 | H31: 382.1 | I31: 4.6 | J31: 281.2
B32: Cash and cash equivalents | E32: 315.9 | F32: 315.9 | G32: 0.036 | H32: 0 | I32: 0 | J32: 0
B33: Total | E33: 8429.9 | F33: 8812 | G33: 1 | H33: 382.1 | I33: 4.6 | J33: 281.2

Sheet 19
A1: THE HANOVER INSURANCE GROUP
A2: CREDIT QUALITY AND DURATION OF FIXED MATURITIES
A3: September 30, 2016
A5: (In millions)
A7: CREDIT QUALITY OF FIXED MATURITIES
C9: Rating Agency | D9: Amortized | G9: Fair | I9: % of Total
B10: NAIC Designation | C10: Equivalent Designation | D10: Cost | G10: Value | I10: Fair Value
B12: 1 | C12: Aaa/Aa/A | E12: 4786.7 | G12: 4990.1 | I12: 0.674
B13: 2 | C13: Baa | E13: 1893.5 | G13: 1972.5 | I13: 0.267
B14: 3 | C14: Ba | E14: 210.7 | G14: 219.6 | I14: 0.03
B15: 4 | C15: B | E15: 195.7 | G15: 202.9 | I15: 0.027
B16: 5 | C16: Caa and lower | E16: 11.6 | G16: 11.6 | I16: 0.002
B17: 6 | C17: In or near default | E17: 2.2 | G17: 3.5 | I17: 0
A18: Total fixed maturities | E18: 7100.4 | G18: 7400.2 | I18: 1
B22: DURATION OF FIXED MATURITIES
D24: Amortized | G24: Fair | I24: % of Total
D25: Cost | G25: Value | I25: Fair Value
C27: 0-2 Years | E27: 1389.7 | G27: 1419.1 | I27: 0.192
C28: 2-4 Years | E28: 2369.5 | G28: 2481.7 | I28: 0.335
C29: 4-6 Years | E29: 1678.6 | G29: 1759.4 | I29: 0.238
C30: 6-8 Years | E30: 1157.8 | G30: 1216.8 | I30: 0.164
C31: 8-10 Years | E31: 434 | G31: 444.9 | I31: 0.06
C32: 10+ Years | E32: 70.8 | G32: 78.3 | I32: 0.011
C33: Total fixed maturities | E33: 7100.4 | G33: 7400.2 | I33: 1
C35: Weighted Average Duration | E35: 4.17

Sheet 20
B1: THE HANOVER INSURANCE GROUP
B2: TOP 10 CORPORATE AND MUNICIPAL FIXED MATURITY HOLDINGS
B3: September 30, 2016
C6: (In millions, except percentage data)
C7: Issuer | D7: Amortized Cost | E7: Fair Value | F7: As a Percent of Invested Assets | G7: S&P Ratings
C8: Royal Bank of Scotland: (1)
C9: Term deposits | D9: 48.8 | E9: 82.1 | F9: 0.0096 | G9: A-
C10: Notes | D10: 7.6 | E10: 9 | F10: 0.0011 | G10: A
C11: Anheuser-Busch | D11: 31.5 | E11: 32.9 | F11: 0.0037 | G11: A-
C12: AT&T | D12: 27.1 | E12: 27.9 | F12: 0.0032 | G12: BBB+
C13: Enterprise Holdings | D13: 26.9 | E13: 27.7 | F13: 0.0031 | G13: BBB+
C14: Bank of America | D14: 25.4 | E14: 26.9 | F14: 0.0031 | G14: BBB+
C15: Glencore International | D15: 24.8 | E15: 24.9 | F15: 0.0028 | G15: BBB-
C16: Morgan Stanley | D16: 24.6 | E16: 25.3 | F16: 0.0029 | G16: BBB+
C17: Southern Company | D17: 24.1 | E17: 25.5 | F17: 0.0029 | G17: A-
C18: US Bancorp | D18: 24 | E18: 25 | F18: 0.0028 | G18: A
C19: AbbVie | D19: 24 | E19: 24.8 | F19: 0.0028 | G19: A-
C20: Oracle | D20: 23.9 | E20: 24.8 | F20: 0.0028 | G20: AA-
C21: Top 10 Corporate and Municipal Fixed | D21: 256.3 | E21: 265.7 | F21: 0.0301
C23: (1) UK government owns 79% of bank equity; term deposits mature in the fourth quarter of 2014.

Sheet 21
A2: THE HANOVER INSURANCE GROUP
A3: RECONCILIATION OF OPERATING INCOME TO NET INCOME
C8: Three Months ended September 30 | M8: Nine Months ended September 30
C9: 2016 | H9: 2015 | M9: 2016 | R9: 2015
A10: (In millions, except per share data) | D10: $ | E10: Per Share (Diluted) | I10: $ | J10: Per Share (Diluted) | N10: $ | O10: Per Share (Diluted) | S10: $ | T10: Per Share (Diluted)
A11: OPERATING INCOME (LOSS)
A12: Commercial Lines | C12: $ | D12: 42500000 | H12: $ | I12: 47100000 | M12: $ | N12: 129200000 | R12: $ | S12: 126500000
A13: Personal Lines | D13: 41700000 | I13: 37200000 | N13: 136200000 | S13: 91600000
A14: Chaucer | D14: 48400000 | I14: 41200000 | N14: 87600000 | S14: 132400000
A15: Other | D15: -2800000 | I15: -2900000 | N15: -8100000 | S15: -8000000
A16: Total | D16: 129800000 | I16: 122600000 | N16: 344900000 | S16: 342500000
A18: Interest expense | D18: -12500000 | I18: -14800000 | N18: -42800000 | S18: -45900000
A20: Operating income before income taxes | D20: 117300000 | E20: $ | F20: 2.73 | I20: 107800000 | J20: $ | K20: 2.4 | N20: 302100000 | O20: $ | P20: 6.97 | S20: 296600000 | T20: $ | U20: 6.58
A22: Income tax expense on operating income | D22: -38700000 | F22: -0.9 | I22: -35600000 | K22: -0.79 | N22: -98000000 | P22: -2.26 | S22: -96900000 | U22: -2.15
A24: Operating income after income taxes | D24: 78600000 | F24: 1.83 | I24: 72200000 | K24: 1.61 | N24: 204100000 | P24: 4.71 | S24: 199700000 | U24: 4.43
A25: Gain on disposal of U.K. motor business, net of tax | D25: 0 | F25: 0 | I25: 0 | K25: 0 | N25: 900000 | P25: 0.02 | S25: 40300000 | U25: 0.9
A26: Other non-operating items:
A27: Net realized investment gains | D27: 4200000 | F27: 0.1 | I27: 8000000 | K27: 0.18 | N27: 5000000 | P27: 0.12 | S27: 30000000 | U27: 0.67
A28: Loss from repayment of debt | D28: 0 | F28: 0 | I28: -5600000 | K28: -0.12 | N28: -86100000 | P28: -1.99 | S28: -24100000 | U28: -0.54
A29: Other | D29: 2500000 | F29: 0.06 | I29: 200000 | K29: 0 | N29: 2800000 | P29: 0.07 | S29: -200000 | U29: 0
A30: Income tax benefit on other non-operating items | D30: 3000000 | F30: 0.07 | I30: 2400000 | K30: 0.05 | N30: 41600000 | P30: 0.96 | S30: 7300000 | U30: 0.16
A31: Income from continuing operations, net of taxes | D31: 88300000 | F31: 2.06 | I31: 77200000 | K31: 1.72 | N31: 168300000 | P31: 3.89 | S31: 253000000 | U31: 5.62
A33: Discontinued operations, net of taxes | D33: 100000 | F33: 0 | I33: 1100000 | K33: 0.02 | N33: 300000 | P33: 0 | S33: 900000 | U33: 0.02
A34: NET INCOME | C34: $ | D34: 88400000 | E34: $ | F34: 2.06 | H34: $ | I34: 78300000 | J34: $ | K34: 1.74 | M34: $ | N34: 168600000 | O34: $ | P34: 3.89 | R34: $ | S34: 253900000 | T34: $ | U34: 5.64

Sheet 22
A2: Non-GAAP Financial Measures
B4: The Hanover uses non-GAAP financial measures as important measures of the Company’s operating performance, which we believe provide investors with additional information regarding management’s evaluation of our results of operations and financial performance. The Company's non-GAAP measures include operating income before interest expense and taxes, total operating income after taxes, total operating income after taxes per share, total book value per share, total book value per share excluding net unrealized gains and losses related to investments, net of tax, tangible book value per share and measures of operating income and loss and combined ratios excluding catastrophe losses (catastrophe losses as discussed here and in all other measures include catastrophe loss development) and reserve development. After-tax operating income EPS (sometimes referred to as “after-tax operating income per share”) is a non-GAAP measure. It is defined as net income (loss) excluding the after-tax impact of net realized investment gains (losses), as well as results from discontinued operations for a period divided by the average number of diluted shares of common stock.
B6: Operating income before interest expense and taxes is net income, excluding interest expense on debt, income taxes and net realized investment gains and losses, because fluctuations in these gains and losses are determined by interest rates, financial markets and the timing of sales. Operating income before interest expense and taxes also excludes net gains and losses on disposals of businesses, discontinued operations, restructuring costs, extraordinary items, the cumulative effect of accounting changes and certain other items. Operating income before interest expense and taxes is the sum of the operating income from: Commercial Lines, Personal Lines, Chaucer, and Other. The Hanover believes that measures of operating income before interest expense and taxes provide investors with a valuable measure of the performance of the Company’s ongoing businesses because they highlight net income attributable to the core operations of the business.
B8: Book value per share is total shareholders’ equity divided by the number of common shares outstanding. Book value per share excluding net unrealized gains and losses related to investments, net of tax is total shareholders’ equity excluding the after-tax effect of unrealized investment gains and losses divided by the number of common shares outstanding. Tangible book value per share is total shareholders' equity, excluding goodwill, divided by the number of common shares outstanding.
B10: The Hanover also provides measures of operating income and loss ratios that exclude the effects of catastrophe losses. A catastrophe is a severe loss, resulting from natural or manmade events, including risks such as fire, hurricane, earthquake, windstorm, explosion, terrorism or other similar events. Each catastrophe has unique characteristics. Catastrophes are not predictable as to timing or loss amount in advance. The Hanover believes that providing certain financial metrics and trends excluding the effects of catastrophes is meaningful for investors to understand the variability of periodic earnings and loss ratios.
B12: Prior year reserve development, which can be favorable or unfavorable, represents changes in our estimate of the costs to pay claims from prior years. We believe that a discussion of operating income excluding prior year reserve development is helpful to investors since it provides insight into both our estimate of current year accident results and changes to prior-year reserve estimates.
B14: Operating income before and after interest expense and taxes and measures of operating income that exclude the effects of catastrophe losses or reserve development should not be construed as substitutes for net income determined in accordance with GAAP. A reconciliation of income from continuing operations to operating income before interest expense and taxes and income from continuing operations per share to operating income after taxes per share for the three and nine months ended September 30, 2016 and 2015 is set forth on page 21 of this document. The presentation of loss ratios calculated excluding the effects of reserve development and/or catastrophe losses should not be construed as a substitute for loss ratios determined in accordance with GAAP.

Sheet 23
B3: CORPORATE OFFICES AND | I3: INDUSTRY RATINGS AS OF NOVEMBER 3, 2016 | P3: TRANSFER AGENT
B4: PRINCIPAL SUBSIDIARIES
B6: THE HANOVER INSURANCE GROUP, INC. | K6: A.M. | L6: Standard | P6: Computershare Investor Services
B7: 440 Lincoln Street | I7: Financial Strength Ratings | K7: Best | L7: & Poor's | M7: Moody's | P7: PO Box 30170
B8: Worcester, MA 01653 | J8: The Hanover Insurance | P8: College Station, TX 77842-3170
J9: Company | K9: A | L9: A | M9: A3 | P9: 1-800-317-4454
B10: The Hanover Insurance Company | J10: Citizens Insurance Company
B11: 440 Lincoln Street | J11: of America | K11: A | L11: A | M11: -
B12: Worcester, MA 01653
P13: COMMON STOCK
B14: Citizens Insurance Company of America | K14: A.M. | L14: Standard
B15: 808 North Highlander Way | I15: Debt Ratings | K15: Best | L15: & Poor's | M15: Moody's | P15: Common stock of The Hanover Insurance Group is traded
B16: Howell, MI 48843 | J16: The Hanover Insurance Group, Inc. | P16: on the New York Stock Exchange under the symbol "THG".
J17: Senior Debt | K17: bbb | L17: BBB | M17: Baa3
B18: Chaucer Holdings Limited | J18: Subordinated Debentures | K18: bb+ | L18: BB+ | M18: Ba1
B19: Plantation Place | P19: INQUIRIES
B20: 30 Fenchurch Street
B21: London | P21: Oksana Lukasheva
B22: EC3M 3AD | P22: Vice President
P23: Investor Relations
B24: MARKET AND DIVIDEND INFORMATION | P24: (508) 855-2063
P25: olukasheva@hanover.com
B26: The following tables set forth the high and low closing
B27: sales prices of our common stock and cash dividends
B28: for the periods indicated: | P28: INVESTOR INFORMATION LINE
B30: Quarter Ended | C30: 2016 | P30: Dial 1-800-407-5222 to receive additional printed information,
C31: Price Range | E31: Dividends | P31: fax-on-demand services or other prerecorded messages.
C32: High | D32: Low | E32: Per Share
B33: ="March 31" -> March 31 | C33: 90.68 | D33: 76.9 | E33: 0.46 | P33: Please visit our internet site at http:// www.Hanover.com
B34: ="June 30" -> June 30 | C34: 91.15 | D34: 80.41 | E34: 0.46
B35: ="September 30" -> September 30 | C35: 84.58 | D35: 74.1 | E35: 0.46
B39: Quarter Ended | C39: 2015
C40: Price Range | E40: Dividends
C41: High | D41: Low | E41: Per Share
B42: ="March 31" -> March 31 | C42: 73.35 | D42: 68.18 | E42: 0.41
B43: ="June 30" -> June 30 | C43: 74.87 | D43: 68.57 | E43: 0.41
B44: ="September 30" -> September 30 | C44: 82.82 | D44: 75.39 | E44: 0.41
B45: ="December 31" -> December 31 | C45: 86.58 | D45: 77.4 | E45: 0.46

Sheet BS Equity Parentheticals (hidden)
A2: FOOTNOTE INPUT
A3: =FORMQTR&", "&VALUE(CV) -> 
A6: Page # | B6: Footnote | G6: ="YTD "&RIGHT(CV,2) ->  | J6: ="YTD "&RIGHT(PV,2) -> 
G9: CENTER-SUM | J9: =+G9 -> CENTER-SUM
G10: PRODUCT | J10: =+G10 -> PRODUCT
G11: LEGAL | J11: LEGAL
G12: PROD-Q | J12: PROD-Q
G13: =VALUE(CV)&" Actuals" ->  | J13: =VALUE(PV)&" Actuals" -> 
G14: =CY ->  | J14: =PYE -> 
G15: BOOK TYPE | J15: BOOK TYPE
A17: 3 | B17: Commons Stock Issued
B18: Commons Stock Issued | C18: =+CSISSUE_CY -> 60.5 | F18: ICSTOCK | G18: =ROUND(G19/1000000,1) -> 60.5 | I18: ICSTOCK | J18: =ROUND(J19/1000000,1) -> 60.5
F19: ICSTOCK | G19: 60475872 | I19: ICSTOCK | J19: 60475872
A20: 3 | B20: Treasury Stock Shares Outstanding
B21: Treasury Stock Shares Outstanding - per essbase | C21: =+TSOUT_CY -> 18.2 | F21: TSTOCKOUT | G21: =(ROUND(G22/1000000,1))+(M21/1000000) -> 16.7 | I21: TSTOCKOUT | J21: =(ROUND(J22/1000000,1))+(P21/1000000) -> 16.8
B22: Common shares outstanding | C22: =ROUND('2'!P54/1000000,1) -> 42.3 | F22: TSTOCKOUT | G22: 16733094 | I22: TSTOCKOUT | J22: 16820438
B23: Treasury Stock Shares Outstanding - rounded for balance sheet | C23: =+C18-C22 -> 18.2

Sheet Development (hidden)
B1: BOOK TYPE | C1: Product Qualifier | D1: Summary Centers | E1: Consolidated BU Rollup
B2: =CQ ->  | C2: =CQ ->  | D2: =CQ ->  | E2: =_TEB2 ->  | F2: =_TEB2 ->  | G2: =_TEB2 ->  | H2: =_TEB3 ->  | I2: =_TEB3 ->  | J2: =_TEB3 ->  | K2: =_TEB4 ->  | L2: =_TEB4 ->  | M2: =_TEB4 ->  | N2: =CQ ->  | O2: =CQ ->  | P2: =CQ ->  | Q2: =CY -> 
B3: =VALUE(PV)&" Actuals" ->  | C3: =VALUE(PV)&" Actuals" ->  | D3: =VALUE(PV)&" Actuals" ->  | E3: =VALUE(_TYR2)&" Actuals" ->  | F3: =VALUE(_TYR2)&" Actuals" ->  | G3: =VALUE(_TYR2)&" Actuals" ->  | H3: =VALUE(_TYR3)&" Actuals" ->  | I3: =VALUE(_TYR3)&" Actuals" ->  | J3: =VALUE(_TYR3)&" Actuals" ->  | K3: =VALUE(_TYR4)&" Actuals" ->  | L3: =VALUE(_TYR4)&" Actuals" ->  | M3: =VALUE(_TYR4)&" Actuals" ->  | N3: =VALUE(CV)&" Actuals" ->  | O3: =VALUE(CV)&" Actuals" ->  | P3: =VALUE(CV)&" Actuals" ->  | Q3: =VALUE(PV)&" Actuals" ->  | R3: =VALUE(PV)&" Actuals" ->  | S3: =VALUE(PV)&" Actuals" ->  | T3: =VALUE(CV)&" Actuals" ->  | U3: =VALUE(CV)&" Actuals" ->  | V3: =VALUE(CV)&" Actuals" -> 
B4: PY-Loss-Dev(Fav)Unfav | C4: PY-LAE-Dev(Fav)Unfav | D4: PYLOSS-LAE DEV (Fav)Unfav | E4: PY-Loss-Dev(Fav)Unfav | F4: PY-LAE-Dev(Fav)Unfav | G4: PYLOSS-LAE DEV (Fav)Unfav | H4: PY-Loss-Dev(Fav)Unfav | I4: PY-LAE-Dev(Fav)Unfav | J4: PYLOSS-LAE DEV (Fav)Unfav | K4: PY-Loss-Dev(Fav)Unfav | L4: PY-LAE-Dev(Fav)Unfav | M4: PYLOSS-LAE DEV (Fav)Unfav | N4: PY-Loss-Dev(Fav)Unfav | O4: PY-LAE-Dev(Fav)Unfav | P4: PYLOSS-LAE DEV (Fav)Unfav | Q4: PY-Loss-Dev(Fav)Unfav | R4: PY-LAE-Dev(Fav)Unfav | S4: PYLOSS-LAE DEV (Fav)Unfav | T4: PY-Loss-Dev(Fav)Unfav | U4: PY-LAE-Dev(Fav)Unfav | V4: PYLOSS-LAE DEV (Fav)Unfav
A5: Workers' Compensation | B5: -3500000 | C5: - | D5: -3500000 | E5: -5100000 | F5: 700000 | G5: -4400000 | H5: -1800000 | I5: 200000 | J5: -1600000 | K5: -500000 | L5: 200000 | M5: -300000 | N5: - | O5: - | P5: - | Q5: -11100000 | R5: 100000 | S5: -11000000 | T5: -2300000 | U5: 400000 | V5: -1900000
A6: Commercial Automobile | B6: 1900000 | C6: 600000 | D6: 2500000 | E6: 2000000 | F6: 600000 | G6: 2600000 | H6: 2700000 | I6: 700000 | J6: 3400000 | K6: 3900000 | L6: 200000 | M6: 4100000 | N6: - | O6: - | P6: - | Q6: 6500000 | R6: 1400000 | S6: 7900000 | T6: 6600000 | U6: 900000 | V6: 7500000
A7: Commercial Multiple Peril | B7: -1100000 | C7: 1100000 | D7: 0 | E7: -2300000 | F7: 300000 | G7: -2000000 | H7: 100000 | I7: -800000 | J7: -700000 | K7: -4400000 | L7: 300000 | M7: -4100000 | N7: - | O7: - | P7: - | Q7: -5200000 | R7: 1200000 | S7: -4000000 | T7: -4300000 | U7: -500000 | V7: -4800000
A8: Other Property & Casualty | B8: 4200000 | C8: -900000 | D8: 3300000 | E8: 2600000 | F8: 1500000 | G8: 4100000 | H8: -1300000 | I8: 800000 | J8: -500000 | K8: 900000 | L8: 1200000 | M8: 2100000 | N8: - | O8: - | P8: - | Q8: 9600000 | R8: 500000 | S8: 10100000 | T8: -400000 | U8: 2000000 | V8: 1600000
A9: Total Commercial | B9: 1500000 | C9: 800000 | D9: 2300000 | E9: -2800000 | F9: 3100000 | G9: 300000 | H9: -300000 | I9: 900000 | J9: 600000 | K9: -100000 | L9: 1900000 | M9: 1800000 | N9: - | O9: - | P9: - | Q9: -200000 | R9: 3200000 | S9: 3000000 | T9: -400000 | U9: 2800000 | V9: 2400000
A10: Personal Automobile | B10: 2700000 | C10: 400000 | D10: 3100000 | E10: 2300000 | F10: 900000 | G10: 3200000 | H10: -700000 | I10: -300000 | J10: -1000000 | K10: -2600000 | L10: -400000 | M10: -3000000 | N10: - | O10: - | P10: - | Q10: 9700000 | R10: 700000 | S10: 10400000 | T10: -3300000 | U10: -700000 | V10: -4000000
A11: Homeowners | B11: -1000000 | C11: - | D11: -1000000 | E11: 100000 | F11: -100000 | G11: 0 | H11: 400000 | I11: -400000 | J11: 0 | K11: 1400000 | L11: -400000 | M11: 1000000 | N11: - | O11: - | P11: - | Q11: 300000 | R11: -300000 | S11: 0 | T11: 1800000 | U11: -800000 | V11: 1000000
A12: Personal Other | B12: - | C12: - | D12: - | E12: 100000 | F12: -100000 | G12: 0 | H12: 100000 | I12: -100000 | J12: 0 | K12: -300000 | L12: 100000 | M12: -200000 | N12: - | O12: - | P12: - | Q12: 100000 | R12: 0 | S12: 100000 | T12: -200000 | U12: 0 | V12: -200000
A13: Total Personal | B13: 1700000 | C13: 400000 | D13: 2100000 | E13: 2500000 | F13: 700000 | G13: 3200000 | H13: -200000 | I13: -800000 | J13: -1000000 | K13: -1500000 | L13: -700000 | M13: -2200000 | N13: - | O13: - | P13: - | Q13: 10100000 | R13: 400000 | S13: 10500000 | T13: -1700000 | U13: -1500000 | V13: -3200000
A14: Opus Investment Mgmt | B14: - | C14: - | D14: - | E14: - | F14: - | G14: - | H14: - | I14: - | J14: - | K14: - | L14: - | M14: - | N14: - | O14: - | P14: - | Q14: - | R14: - | S14: - | T14: - | U14: - | V14: -
A15: AMGRO-PROD | B15: - | C15: - | D15: - | E15: - | F15: - | G15: - | H15: - | I15: - | J15: - | K15: - | L15: - | M15: - | N15: - | O15: - | P15: - | Q15: - | R15: - | S15: - | T15: - | U15: - | V15: -
A16: VOLPROD | B16: -200000 | C16: - | D16: -200000 | E16: 400000 | F16: - | G16: 400000 | H16: 300000 | I16: 0 | J16: 300000 | K16: 300000 | L16: 100000 | M16: 400000 | N16: - | O16: - | P16: - | Q16: 200000 | R16: 700000 | S16: 900000 | T16: 600000 | U16: 100000 | V16: 700000
A17: CORP-OTHER | B17: - | C17: - | D17: - | E17: - | F17: - | G17: - | H17: - | I17: - | J17: - | K17: - | L17: - | M17: - | N17: - | O17: - | P17: - | Q17: - | R17: - | S17: - | T17: - | U17: - | V17: -
A18: OTHERP&C | B18: -200000 | C18: - | D18: -200000 | E18: 400000 | F18: - | G18: 400000 | H18: 300000 | I18: 0 | J18: 300000 | K18: 300000 | L18: 100000 | M18: 400000 | N18: - | O18: - | P18: - | Q18: 200000 | R18: 700000 | S18: 900000 | T18: 600000 | U18: 100000 | V18: 700000
A19: P&C Products | B19: -24800000 | C19: 1200000 | D19: -23600000 | E19: -22700000 | F19: 3800000 | G19: -18900000 | H19: -19800000 | I19: 100000 | J19: -19700000 | K19: -30500000 | L19: 1300000 | M19: -29200000 | N19: - | O19: - | P19: - | Q19: -61700000 | R19: 4300000 | S19: -57400000 | T19: -50300000 | U19: 1400000 | V19: -48900000

Sheet Proof-THG (hidden)
A2: Financial Highlights
A3: =FORMQTR&", "&VALUE(CV) -> 
E4: =CQ&"' "&RIGHT(CV,2) ->  | G4: =CQ&"' "&RIGHT(PV,2) ->  | L4: ="YTD"&" "&RIGHT(CV,2) ->  | N4: ="YTD"&" "&RIGHT(PV,2) -> 
B5: Page #'s | E5: Variance | G5: Variance | I5: Page #'s | L5: Variance | N5: Variance
A7: SEGMENT INCOME
A8: Property and Casualty
A9: Personal Lines | B9: 1 | C9: 9 | E9: =+#REF!-#REF! ->  | G9: =+#REF!-#REF! ->  | I9: =+$B$9 -> 1 | J9: 10 | L9: =+#REF!-#REF! ->  | N9: =+#REF!-#REF! -> 
A10: Commercial Lines | B10: =+B$9 -> 1 | C10: 9 | E10: =+#REF!-#REF! ->  | G10: =+#REF!-#REF! ->  | I10: =+$B$9 -> 1 | J10: =+J9 -> 10 | L10: =+#REF!-#REF! ->  | N10: =+#REF!-#REF! -> 
A11: Other | B11: 1 | C11: 9 | E11: =+#REF!-#REF! ->  | G11: =+#REF!-#REF! ->  | I11: =+$B$9 -> 1 | J11: =+J9 -> 10 | L11: =+#REF!-#REF! ->  | N11: =+#REF!-#REF! -> 
A12: Total Property and Casualty | B12: 1 | C12: 9 | E12: =+#REF!-#REF! ->  | G12: =+#REF!-#REF! ->  | I12: =+$B$9 -> 1 | J12: =+J9 -> 10 | L12: =+#REF!-#REF! ->  | N12: =+#REF!-#REF! -> 
A14: Life Companies | B14: =+B9 -> 1 | C14: 13 | E14: =+#REF!-#REF! ->  | G14: =+#REF!-#REF! ->  | I14: =+B9 -> 1 | J14: 13 | L14: =+#REF!-#REF! ->  | N14: =+#REF!-#REF! -> 
A16: Income Reconciliation
A17: Income from continuing operations, net of taxes | B17: =+B9 -> 1 | C17: 4 | E17: =+#REF!-'3'!D29 ->  | G17: =+#REF!-'3'!G29 ->  | I17: =+$B$17 -> 1 | J17: =+$C$17 -> 4 | L17: =+#REF!-'3'!L29 ->  | N17: =+#REF!-'3'!O29 -> 
A18: (Loss) Income from operations of discontinued FAFLIC
A19: business, net of taxes | B19: =+B$17 -> 1 | C19: =+C$17 -> 4 | E19: =+#REF!-'3'!D31 ->  | G19: =+#REF!-'3'!G31 ->  | I19: =+$B$17 -> 1 | J19: =+$C$17 -> 4 | L19: =+#REF!-'3'!L31 ->  | N19: =+#REF!-'3'!#REF! -> 
A20: Income from operations of AMGRO, net of taxes | B20: 1 | C20: 4 | E20: =+#REF!-'3'!#REF! ->  | G20: =+#REF!-'3'!#REF! ->  | I20: 1 | J20: 4 | L20: =+#REF!-'3'!#REF! ->  | N20: =+#REF!-'3'!#REF! -> 
A21: Gain on disposal of variable business | B21: =+B$17 -> 1 | C21: 4 | E21: =+#REF!-'3'!#REF! ->  | G21: =+#REF!-'3'!#REF! ->  | I21: 1 | J21: 4 | L21: =+#REF!-'3'!#REF! ->  | N21: =+#REF!-'3'!#REF! -> 
A22: Income before cumulative effect of accounting change | B22: 1 | C22: 4 | E22: =+#REF!-'3'!#REF! ->  | G22: =+#REF!-'3'!#REF! ->  | I22: 1 | J22: 4 | L22: =+#REF!-'3'!#REF! ->  | N22: =+#REF!-'3'!#REF! -> 
A23: Other | B23: 1 | C23: 4 | E23: =+#REF!-'3'!#REF! ->  | G23: =+#REF!-'3'!#REF! ->  | I23: 1 | J23: 4 | L23: =+#REF!-'3'!#REF! ->  | N23: =+#REF!-'3'!#REF! -> 
A24: Net (loss) income | B24: 1 | C24: 4 | E24: =+#REF!-'3'!D33 ->  | G24: =+#REF!-'3'!G33 ->  | I24: 1 | J24: 4 | L24: =+#REF!-'3'!L33 ->  | N24: =+#REF!-'3'!O33 -> 
A26: Shareholders' Equity
A27: The Hanover Insurance Company (consolidated) | B27: 3 | C27: 8 | E27: =+#REF!-#REF! ->  | G27: =+#REF!-#REF! ->  | I27: xxxxxxxxxx | J27: xxxxxxx | L27: xxxxxxxxxxx | N27: xxxxxxxxxxx
A28: First Allmerica Financial Life Ins Company (consolidated) | B28: =+B27 -> 3 | C28: 14 | E28: =+#REF!-#REF! ->  | G28: =+#REF!-#REF! ->  | I28: xxxxxxxxxx | J28: xxxxxxx | L28: xxxxxxxxxxx | N28: xxxxxxxxxxx
A29: THG Holding Company debt (1) | B29: =+B27 -> 3 | C29: PQ | E29: =+#REF!-#REF! ->  | G29: =+#REF!+499.5*1000000 ->  | I29: xxxxxxxxxx | J29: xxxxxxx | L29: xxxxxxxxxxx | N29: xxxxxxxxxxx
A30: Total shareholders' equity | B30: =+B27 -> 3 | C30: 6 | E30: =+#REF!-'4'!D45 ->  | G30: =+#REF!-'4'!G45 ->  | I30: xxxxxxxxxx | J30: xxxxxxx | L30: xxxxxxxxxxx | N30: xxxxxxxxxxx
A32: PER SHARE DATA (DILUTED):
A33: Income from continuing operations, net of taxes | B33: 2 | C33: 5 | E33: =+#REF!-#REF! ->  | G33: =+#REF!-#REF! ->  | I33: =+$B$33 -> 2 | J33: =+$C$33 -> 5 | L33: =+#REF!-#REF! ->  | N33: =+#REF!-#REF! -> 
A34: (Loss) Income from operations of discontinued FAFLIC
A35: business, net of taxes | B35: =+$B$33 -> 2 | C35: =+$C$33 -> 5 | E35: =+#REF!-#REF! ->  | G35: =+#REF!-#REF! ->  | I35: =+$B$33 -> 2 | J35: =+$C$33 -> 5 | L35: =+#REF!-#REF! ->  | N35: =+#REF!-#REF! -> 
A36: Income from operations of AMGRO, net of taxes | B36: =+$B$33 -> 2 | C36: =+$C$33 -> 5 | E36: =+#REF!-#REF! ->  | G36: =+#REF!-#REF! ->  | I36: =+$B$33 -> 2 | J36: =+$C$33 -> 5 | L36: =+#REF!-#REF! ->  | N36: =+#REF!-#REF! -> 
A37: Gain on disposal of variable business | B37: =+$B$33 -> 2 | C37: =+$C$33 -> 5 | E37: =+#REF!-#REF! ->  | G37: =+#REF!-#REF! ->  | I37: =+$B$33 -> 2 | J37: =+$C$33 -> 5 | L37: =+#REF!-#REF! ->  | N37: =+#REF!-#REF! -> 
A38: Other | B38: =+$B$33 -> 2 | C38: =+$C$33 -> 5 | E38: =+#REF!-#REF! ->  | G38: =+#REF!-#REF! ->  | I38: =+$B$33 -> 2 | J38: =+$C$33 -> 5 | L38: =+#REF!-#REF! ->  | N38: =+#REF!-#REF! -> 
A39: Cumulative effect of change in accounting
A40: principle, net of taxes | B40: =+$B$33 -> 2 | C40: =+$C$33 -> 5 | E40: =+#REF!-#REF! ->  | G40: =+#REF!-#REF! ->  | I40: =+$B$33 -> 2 | J40: =+$C$33 -> 5 | L40: =+#REF!-#REF! ->  | N40: =+#REF!-#REF! -> 
A41: Net income | B41: =+$B$33 -> 2 | C41: =+$C$33 -> 5 | E41: =+#REF!-#REF! ->  | G41: =+#REF!-#REF! ->  | I41: =+$B$33 -> 2 | J41: =+$C$33 -> 5 | L41: =+#REF!-#REF! ->  | N41: =+#REF!-#REF! -> 

Sheet Proof-BS (hidden)
A1: CONSOLIDATED BALANCE SHEETS
G2: THG
C3: THG | E3: P&C | G3: less P&C | I3: Ref # | K3: Variance | L3: Comments
A4: ASSETS | C4: SS Page #6 | E4: SS Page #8
A5: Investments:
A6: Fixed maturities, at fair value | C6: =+'4'!D10 -> 7400200000 | E6: =+#REF! ->  | G6: =+C6-E6 ->  | I6: 1 | K6: =SUM(G6)-SUM(#REF!) -> 
A7: =" Equity securities, at fair value" -> Equity securities, at fair value | C7: =+'4'!D11 -> 612500000 | E7: =+#REF! ->  | G7: =+C7-E7 ->  | I7: 2 | K7: =SUM(G7)-SUM(#REF!) ->  | L7: Rounding must go to P&C or Life
A8: Mortgage loans | C8: =+'4'!#REF! ->  | E8: =+#REF! ->  | G8: =+C8-E8 ->  | I8: 3 | K8: =SUM(G8)-SUM(#REF!) ->  | L8: ok - mtg elim
A9: Policy loans | C9: =+'4'!#REF! ->  | G9: =+C9-E9 ->  | I9: 4 | K9: =SUM(G9)-SUM(#REF!) -> 
A10: Other long-term investments | C10: =+'4'!D12 -> 483400000 | E10: =+#REF! ->  | G10: =+C10-E10 ->  | I10: 5 | K10: =SUM(G10)-SUM(#REF!) -> 
A11: Total investments | C11: =+'4'!D13 -> 8496100000 | E11: =+#REF! ->  | G11: xxxxxxxxxxxxxxxx
A12: Cash and cash equivalents | C12: =+'4'!D14 -> 315900000 | E12: =+#REF! ->  | G12: =+C12-E12 ->  | I12: 6 | K12: =SUM(G12)-SUM(#REF!) -> 
A13: Accrued investment income | C13: =+'4'!D15 -> 62500000 | E13: =+#REF! ->  | I13: 7 | K13: =SUM(G13)-SUM(#REF!) -> 
A14: Premiums, accounts and notes receivable, net | C14: =+'4'!D16 -> 1534900000 | E14: =+#REF! ->  | I14: 8 | K14: =SUM(G14)-SUM(#REF!) -> 
A15: Reinsurance receivable on paid and unpaid
A16: losses, benefits and unearned premiums | C16: =+'4'!D17 -> 2655100000 | E16: =+#REF! ->  | I16: 9 | K16: =SUM(G16)-SUM(#REF!) -> 
A17: Deferred policy acquistion costs | C17: =+'4'!D18 -> 537400000 | E17: =+#REF! ->  | I17: 10 | K17: =SUM(G17)-SUM(#REF!) -> 
A18: Deferred federal income taxes | C18: =+'4'!D19 -> 16200000 | E18: =+#REF! ->  | I18: 11 | K18: =SUM(G18)-SUM(#REF!) -> 
A19: Goodwill | C19: =+'4'!D20 -> 185100000 | E19: =+#REF! ->  | I19: 12 | K19: =SUM(G19)-SUM(#REF!) -> 
A20: Other assets | C20: =+'4'!D21 -> 476500000 | E20: =+#REF! ->  | I20: 13 | K20: =SUM(G20)-SUM(#REF!-#REF!-#REF!) -> 
A21: Separate account assets | C21: =+'4'!#REF! ->  | I21: n/a
A22: Total assets | C22: =+'4'!D23 -> 14363700000 | E22: =+#REF! ->  | G22: xxxxxxxxxxxxxxxx | K22: =SUM(K6:K20) -> 
A24: LIABILITIES AND SHAREHOLDERS' EQUITY
A26: LIABILITIES
A27: Policy liabilities and accruals:
A28: Future policy benefits | C28: =+'4'!#REF! ->  | G28: =+C28-E28 ->  | I28: 14 | K28: =SUM(G28)+SUM(#REF!) -> 
A29: Outstanding claims, losses and loss adjustment expenses | C29: =+'4'!D28 -> 6802300000 | E29: =+#REF! ->  | G29: =+C29-E29 ->  | I29: 15 | K29: =SUM(G29)+SUM(#REF!) -> 
A30: Unearned premiums | C30: =+'4'!D29 -> 2684800000 | E30: =+#REF! ->  | G30: =+C30-E30 ->  | I30: 16 | K30: =SUM(G30)+SUM(#REF!) -> 
A31: Contractholder deposit funds and other policy liabilities | C31: =+'4'!#REF! ->  | E31: =+#REF! ->  | G31: =+C31-E31 ->  | I31: 17 | K31: =SUM(G31)+SUM(#REF!) -> 
A32: Total policy liabilities and accruals | C32: =+'4'!#REF! ->  | E32: =+#REF! ->  | G32: xxxxxxxxxxxxxxxx
A33: Expenses and taxes payable | C33: =+'4'!D30 -> 662300000 | E33: =+#REF! ->  | G33: =+C33-E33 ->  | I33: 18 | K33: =SUM(G33)+SUM(#REF!+#REF!) ->  | L33: Rounding is okay here.
A34: Reinsurance premiums payable | C34: =+'4'!D31 -> 283700000 | E34: =+#REF! ->  | G34: =+C34-E34 ->  | I34: 19 | K34: =SUM(G34)+SUM(#REF!) -> 
A35: Trust instruments supported by funding obligations | C35: =+'4'!#REF! ->  | G35: =+C35-E35 ->  | I35: 20 | K35: =SUM(G35)+SUM(#REF!) -> 
A36: Long-term debt | C36: =+'4'!D32 -> 797900000 | E36: =#REF! ->  | G36: =+C36-E36 ->  | I36: 21 | K36: =SUM(G36)+SUM(#REF!) ->  | L36: PDI
A37: Separate account liabilities | C37: =+'4'!#REF! ->  | G37: =+C37-E37 ->  | I37: 22 | K37: =SUM(G37)+SUM(#REF!) -> 
A38: Total liabilities | C38: =+'4'!D34 -> 11318000000 | E38: =+#REF! ->  | G38: xxxxxxxxxxxxxxxx
A40: SHAREHOLDERS' EQUITY
A41: Preferred stock, par value $xx per share;
A42: authorized xxx million shares; issued none | C42: =+'4'!D38 -> 0 | G42: =+C42-E42 -> 0 | I42: 23 | K42: =SUM(G42)+SUM(#REF!) -> 
A43: Common stock, par value $.xx per share; authorized xxx.0 million
A44: =" shares; issued" -> shares; issued | C44: =+'4'!D40 -> 600000 | E44: =+#REF! ->  | I44: 24 | K44: =SUM(G44)+SUM(#REF!) -> 
A45: Additional paid-in capital | C45: =+'4'!D41 -> 1838900000 | E45: =+#REF! ->  | I45: 25 | K45: =SUM(G45)+SUM(#REF!+#REF!) -> 
A46: Accumulated other comprehensive (loss) income | C46: =+'4'!D42 -> 227000000 | E46: =+#REF! ->  | I46: 26 | K46: =SUM(G46)+SUM(#REF!) ->  | L46: rounding ok here…assume variance is other P&C
A47: Retained earnings | C47: =+'4'!D43 -> 1910400000 | E47: =+#REF! ->  | I47: 27 | K47: =SUM(G47)+SUM(#REF!) ->  | L47: rounding ok here…assume variance is other P&C
A48: ="Treasury stock at cost" -> Treasury stock at cost | C48: =+'4'!D44 -> -931200000 | G48: -931200000 | I48: 28 | K48: =SUM(G48)+SUM(#REF!) -> 
A49: Total shareholders' equity | C49: =+'4'!D45 -> 3045700000 | E49: =+#REF! ->  | G49: xxxxxxxxxxxxxxxx
A50: Total liabilities and shareholders' equity | C50: =+'4'!D46 -> 14363700000 | E50: =+#REF! ->  | G50: xxxxxxxxxxxxxxxx
D55: = Items highlighted are not applicable to the individual business unit noted.
D57: = Items that should be zero (no reconciliation necessary).

Sheet BS Retrieve (hidden)
B1: BOOK TYPE | C1: Product Qualifier | D1: Corporate-Capacity | E1: 2010 Non Rounded | F1: =CY ->  | G1: All Products
B2: SMAFCO Consolidated | C2: Campania Consolidated | D2: Verlan Consolidated | E2: Benchmark Professionals Ins Svcs | F2: Educators Insurance Agency, Inc. | G2: Benchmark Purchasing Acctg Adj | H2: The Hanover Insurance Group Total | J2: Rounded
A3: Fixed Maturities | B3: 4581634875 | C3: 0 | D3: - | E3: - | F3: - | G3: - | H3: =SUM(B3:G3) -> 4581634875 | J3: =ROUND((H3+H4),) -> 4586400000
A4: S.T. Fixed Maturities | B4: 4803100.91 | C4: - | D4: 0 | E4: - | F4: - | G4: - | H4: 4803100.91
A5: Equity Securities | B5: 124677939.7 | C5: - | D5: - | E5: - | F5: - | G5: - | H5: 124677939.7 | J5: =+H5 -> 124700000
A6: Mortgage Loans Receivable | B6: 5665879.3 | C6: - | D6: - | E6: - | F6: - | G6: - | H6: 5665879.3 | J6: =+H6 -> 5700000
A7: Policy Loans Receivable | B7: - | C7: - | D7: - | E7: - | F7: - | G7: - | H7: 0 | J7: =+H7 -> 0
A8: Real Estate | B8: 8872141.81 | C8: - | D8: - | E8: - | F8: - | G8: - | H8: 8872141.81 | J8: =+H8+H9 -> 31900000
A9: Other Long Term Investments | B9: 23031525.02 | C9: - | D9: - | E9: - | F9: - | G9: - | H9: 23031525.02
A10: Cash & Cash Equivalents | B10: 235154256.1 | C10: 832049.63 | D10: 1538081.32 | E10: 133440.12 | F10: 1604867.52 | G10: - | H10: 239262694.7 | J10: =+H10 -> 239300000
A11: Accrued Investment Income Receivable | B11: 50705359.14 | C11: 0 | D11: 0 | E11: - | F11: - | G11: - | H11: 50705359.14 | J11: 50700000
A12: Premiums, Accounts, & Notes Receivable | B12: 807813790.6 | C12: 27205.66 | D12: - | E12: -6754.78 | F12: 188223.02 | G12: - | H12: 808022464.5 | J12: 808000000
A13: Total Reinsurance Receivables | B13: 1230299516 | C13: - | D13: - | E13: - | F13: - | G13: - | H13: 1230299516 | J13: 1230300000
A14: Deferred Policy Acquistion Costs | B14: 347163997.5 | C14: - | D14: - | E14: - | F14: - | G14: - | H14: 347163997.5 | J14: 347200000
A15: Deferred FIT | B15: - | C15: - | D15: - | E15: - | F15: - | G15: - | H15: 0 | J15: 0
A16: Deferred FIT Asset | B16: 119114560 | C16: 44367.91 | D16: -69038.63 | E16: - | F16: -0.01 | G16: -300437.22 | H16: 118789452 | J16: 118800000
A17: Goodwill | B17: 176180464.4 | C17: - | D17: 2572667.64 | E17: - | F17: 194000 | G17: 428228 | H17: 179375360 | J17: 179400000
A18: Property & Equipment | B18: 95925543.32 | C18: 164253.29 | D18: - | E18: - | F18: - | G18: - | H18: 96089796.61 | J18: =ROUND((H18+H21),-1) -> 375300000
A19: Other Assets (Receivable) | B19: 446477822.9 | C19: 74291.66 | D19: 3628827.04 | E19: 12857.22 | F19: 7150000 | G19: 1286620.86 | H19: 458630419.7
A20: Goodwill | B20: 176180464.4 | C20: - | D20: 2572667.64 | E20: - | F20: 194000 | G20: 428228 | H20: 179375360 | J20: =+H20 -> 179400000
H21: =SUM(H19)-SUM(H20) -> 279255059.7
A22: Assets of Discontinued Operations | B22: 134127301.2 | C22: - | D22: - | E22: - | F22: - | G22: - | H22: =SUM(B22:G22) -> 134127301.2 | J22: =+H22 -> 134100000
A23: ASSET | B23: 8215467608 | C23: 1142168.15 | D23: 5097869.73 | E23: 139542.56 | F23: 8943090.53 | G23: 986183.64 | H23: =SUM(B23:G23) -> 8231776463 | J23: =+H23 -> 8231800000
A27: Future Policy Benefits Payable | B27: - | C27: - | D27: - | E27: - | F27: - | G27: - | H27: =SUM(B27:G27) -> 0 | J27: =+H27 -> 0
A28: Outstanding Claims, Losses & LAE | B28: -3230006825 | C28: - | D28: - | E28: - | F28: - | G28: - | H28: -3230006825 | J28: =ROUND((H28+H30),) -> -3232100000
A29: Unearned Premiums Payable | B29: -1553550176 | C29: - | D29: - | E29: - | F29: - | G29: - | H29: -1553550176 | J29: =+H29 -> -1553600000
A30: Other Policy Funds & Liabilities | B30: -2087722.36 | C30: - | D30: - | E30: - | F30: - | G30: - | H30: -2087722.36
A31: Expenses & Taxes Payable | B31: -508976097.9 | C31: 82531.2 | D31: -1320768.68 | E31: -44886.96 | F31: -1505943.53 | G31: - | H31: -511765165.9 | J31: =ROUND((H31+H32),-1) -> -524800000
A32: Net Inter-Company | B32: -12824542.93 | C32: 41510.43 | D32: -85008.61 | E32: -33382.05 | F32: -139918.17 | G32: - | H32: -13041341.33
A33: Reinsurance Premiums Payable | B33: -33172296.41 | C33: - | D33: - | E33: - | F33: - | G33: - | H33: -33172296.41 | J33: =+H33 -> -33200000
A34: Trust Instruments Supported by Funding Obligations | B34: - | C34: - | D34: - | E34: - | F34: - | G34: - | H34: 0 | J34: 0
A35: Long-Term Debt | B35: -154045837.2 | C35: 0 | D35: - | E35: - | F35: - | G35: - | H35: -154045837.2 | J35: -154000000
A36: Deferred FIT | B36: - | C36: - | D36: - | E36: - | F36: - | G36: - | H36: 0 | J36: 0
A37: Separate Account Liabilities | B37: - | C37: - | D37: - | E37: - | F37: - | G37: - | H37: 0 | J37: 0
A38: Liabilities of Discontinued Operations | B38: -135253959.5 | C38: - | D38: - | E38: - | F38: - | G38: - | H38: -135253959.5 | J38: -135300000
A39: LIABILITY | B39: -5629917457 | C39: 124041.63 | D39: -1405777.29 | E39: -78269.01 | F39: -1645861.7 | G39: - | H39: -5632923323 | J39: -5632900000
A41: Capital Stock Preferred | B41: 0 | C41: - | D41: - | E41: - | F41: - | G41: - | H41: =SUM(B41:G41) -> 0 | J41: =+H41 -> 0
A42: Capital Stock Common | B42: -1045.22 | C42: 574617.84 | D42: 0 | E42: - | F42: -1000 | G42: - | H42: 572572.62 | J42: 600000
A43: Additional Paid-In Capital | B43: -786608243.4 | C43: -2585520.98 | D43: -21240437.78 | E43: - | F43: -7150000 | G43: -1063928 | H43: -818648130.1 | J43: -818600000
A44: Treasury Stock Additional Paid-In Capital | B44: - | C44: - | D44: - | E44: - | F44: - | G44: - | H44: 0 | J44: 0
A45: Unrealized Capital Gains(Losses) | B45: -164926688.3 | C45: - | D45: 0.08 | E45: - | F45: 0.01 | G45: - | H45: -164926688.2 | J45: -164900000
A46: Retained Earnings | B46: -1634014175 | C46: 744693.36 | D46: 17548345.26 | E46: -61273.55 | F46: -146228.84 | G46: 77744.36 | H46: -1615850894 | J46: -1615900000
A47: Treasury Stock | B47: 0 | C47: - | D47: - | E47: - | F47: - | G47: - | H47: 0 | J47: 0
A48: Total Stockholders Equity | B48: -2585550152 | C48: -1266209.78 | D48: -3692092.44 | E48: -61273.55 | F48: -7297228.83 | G48: -986183.64 | H48: -2598853140 | J48: -2598900000

Sheet Essbase - P&C BS (hidden)
B1: BOOK TYPE | C1: Product Qualifier | D1: Corporate-Capacity | F1: 2010 Non Rounded | G1: =CY ->  | H1: All Products
B2: SMAFCO Consolidated | C2: Campania Consolidated | D2: Verlan Consolidated | E2: Educators Insurance Agency, Inc. | F2: Benchmark Professionals Ins Svcs | G2: Benchmark Purchasing Acctg Adj | H2: The Hanover Insurance Group Total | J2: Rounded
A3: Fixed Maturities | B3: 4409339434 | C3: 0 | D3: - | E3: - | F3: - | G3: - | H3: =SUM(B3:G3) -> 4409339434 | J3: =ROUND((H3+H4),) -> 4417300000
A4: S.T. Fixed Maturities | B4: 7935675.6 | C4: - | D4: 0 | E4: - | F4: - | G4: - | H4: 7935675.6
A5: Equity Securities | B5: 127623741.8 | C5: - | D5: - | E5: - | F5: - | G5: - | H5: 127623741.8 | J5: =+H5 -> 127600000
A6: Mortgage Loans Receivable | B6: 5454367.29 | C6: - | D6: - | E6: - | F6: - | G6: - | H6: 5454367.29 | J6: =+H6 -> 5500000
A7: Policy Loans Receivable | B7: - | C7: - | D7: - | E7: - | F7: - | G7: - | H7: 0 | J7: =+H7 -> 0
A8: Real Estate | B8: 10384960.28 | C8: - | D8: - | E8: - | F8: - | G8: - | H8: 10384960.28
A9: Other Long Term Investments | B9: 23585156.47 | C9: - | D9: - | E9: - | F9: - | G9: - | H9: 23585156.47 | J9: =ROUND((H9+H8),-1) -> 34000000
A10: Cash & Cash Equivalents | B10: 218869711 | C10: 522117.91 | D10: 1530130.83 | E10: 1471047.1 | F10: 64741.73 | G10: - | H10: 222457748.6 | J10: =+H10 -> 222500000
A11: Accrued Investment Income Receivable | B11: 50428063.94 | C11: 0 | D11: 0 | E11: - | F11: - | G11: - | H11: 50428063.94 | J11: =+H11 -> 50400000
A12: Premiums, Accounts, & Notes Receivable | B12: 770447419.3 | C12: 37308.84 | D12: - | E12: 217709.27 | F12: 0 | G12: - | H12: 770702437.4 | J12: =+H12 -> 770700000
A13: Future Policy Benefits Receivable | B13: - | C13: - | D13: - | E13: - | F13: - | G13: -
A14: OSL-LIFEADJ | B14: - | C14: - | D14: - | E14: - | F14: - | G14: -
A15: OSL-PCADJ | B15: 1064780707 | C15: - | D15: - | E15: - | F15: - | G15: -
A16: Outstanding Claims, Losses, & LAE Receivable | B16: 1064780707 | C16: - | D16: - | E16: - | F16: - | G16: -
A17: UNPREM-PC | B17: 77849755.52 | C17: - | D17: - | E17: - | F17: - | G17: -
A18: UNPREM-LIFE | B18: - | C18: - | D18: - | E18: - | F18: - | G18: -
A19: Unearned Premiums Receivable | B19: 77849755.52 | C19: - | D19: - | E19: - | F19: - | G19: -
A20: Exhibit8-FG LIAB Reclass | B20: - | C20: - | D20: - | E20: - | F20: - | G20: -
A21: Reinsurance Recoverables | B21: 1119102937 | C21: - | D21: - | E21: - | F21: - | G21: -
A22: ORR-PCADJ | B22: -1064780707 | C22: - | D22: - | E22: - | F22: - | G22: -
A23: Ceded Reinsurance Recover Affiliates | B23: 5613938.74 | C23: - | D23: - | E23: - | F23: - | G23: -
A24: Ceded Reinsurance Receivable | B24: 0 | C24: - | D24: - | E24: - | F24: - | G24: -
A25: Group Conv Charges Receivable | B25: - | C25: - | D25: - | E25: - | F25: - | G25: -
A26: Amounts Recoverable On Reinsurance | B26: 0 | C26: - | D26: - | E26: - | F26: - | G26: -
A27: Commission & Expense Allowance Due-Reinsurance | B27: 1708850.17 | C27: - | D27: - | E27: - | F27: - | G27: -
A28: Experience Refund Receivable | B28: - | C28: - | D28: - | E28: - | F28: - | G28: -
A29: Other Reinsurance Receivable | B29: 61645018.77 | C29: - | D29: - | E29: - | F29: - | G29: -
A30: Total Reinsurance Receivables | B30: 1204275482 | C30: - | D30: - | E30: - | F30: - | G30: - | H30: =SUM(B30:G30) -> 1204275482 | J30: =+H30 -> 1204300000
A31: Deferred Policy Acquistion Costs | B31: 346674708.1 | C31: - | D31: - | E31: - | F31: - | G31: - | H31: 346674708.1 | J31: =+H31 -> 346700000
A32: Deferred FIT | B32: - | C32: - | D32: - | E32: - | F32: - | G32: - | H32: 0 | J32: =+H32 -> 0
A33: Deferred FIT Asset | B33: 154785750.8 | C33: 17960.91 | D33: -48826.13 | E33: -0.01 | F33: - | G33: -286483.06 | H33: 154468402.5 | J33: =+H33 -> 154500000
A34: Goodwill | B34: 175772914.4 | C34: - | D34: 2572667.64 | E34: 194000 | F34: - | G34: 428228 | H34: 178967810 | J34: =+H34 -> 179000000
A35: Property & Equipment | B35: 96621651.56 | C35: 0 | D35: - | E35: - | F35: - | G35: - | H35: 96621651.56 | J35: =ROUND((H35+H38),-1) -> 402100000
A36: Other Assets (Receivable) | B36: 473547849.5 | C36: 66713.56 | D36: 3201496.91 | E36: 6421447 | F36: 9642.96 | G36: 1246751.82 | H36: 484493901.8
A37: Goodwill | B37: 175772914.4 | C37: - | D37: 2572667.64 | E37: 194000 | F37: - | G37: 428228 | H37: 178967810 | J37: =+H37 -> 179000000
H38: =SUM(H36)-SUM(H37) -> 305526091.7
A39: Assets of Discontinued Operations | B39: 133633081.8 | C39: - | D39: - | E39: - | F39: - | G39: - | H39: =SUM(B39:G39) -> 133633081.8 | J39: =+H39 -> 133600000
A40: ASSET | B40: 8033607053 | C40: 644101.22 | D40: 4682801.61 | E40: 8110203.36 | F40: 74384.69 | G40: 960268.76 | H40: =SUM(B40:G40) -> 8048078812 | J40: =+H40 -> 8048100000
A44: Future Policy Benefits Payable | B44: - | C44: - | D44: - | E44: - | F44: - | G44: - | H44: =SUM(B44:G44) -> 0 | J44: =-H44 -> 0
A45: Outstanding Claims, Losses & LAE | B45: -3227564281 | C45: - | D45: - | E45: - | F45: - | G45: - | H45: -3227564281 | J45: =-ROUND((H45+H47),) -> 3229400000
A46: Unearned Premiums Payable | B46: -1522745682 | C46: - | D46: - | E46: - | F46: - | G46: - | H46: -1522745682 | J46: =-H46 -> 1522700000
A47: Other Policy Funds & Liabilities | B47: -1846090.61 | C47: - | D47: - | E47: - | F47: - | G47: - | H47: -1846090.61
A48: Expenses & Taxes Payable | B48: -451059498.9 | C48: 475424.94 | D48: -928965.21 | E48: -1157979.34 | F48: -321.41 | G48: - | H48: -452671340 | J48: =-ROUND((H48+H49),-1) -> 465500000
A49: Net Inter-Company | B49: -12759281.74 | C49: 111058.69 | D49: -67662.17 | E49: -80006.95 | F49: -14248.73 | G49: - | H49: -12810140.9
A50: Reinsurance Premiums Payable | B50: -33941820.22 | C50: - | D50: - | E50: - | F50: - | G50: - | H50: -33941820.22 | J50: =-H50 -> 33900000
A51: Trust Instruments Supported by Funding Obligations | B51: - | C51: - | D51: - | E51: - | F51: - | G51: - | H51: 0 | J51: 0
A52: Long-Term Debt | B52: -156008511 | C52: 0 | D52: - | E52: - | F52: - | G52: - | H52: -156008511 | J52: 156000000
A53: Deferred FIT | B53: - | C53: - | D53: - | E53: - | F53: - | G53: - | H53: 0 | J53: 0
A54: Separate Account Liabilities | B54: - | C54: - | D54: - | E54: - | F54: - | G54: - | H54: 0 | J54: 0
A55: Liabilities of Discontinued Operations | B55: -129400337.6 | C55: - | D55: - | E55: - | F55: - | G55: - | H55: -129400337.6 | J55: 129400000
A56: LIABILITY | B56: -5535325503 | C56: 586483.63 | D56: -996627.38 | E56: -1237986.29 | F56: -14570.14 | G56: - | H56: -5536988204 | J56: 5537000000
A58: Capital Stock Preferred | B58: 0 | C58: - | D58: - | E58: - | F58: - | G58: - | H58: =SUM(B58:G58) -> 0 | J58: =-H58 -> 0
A59: Capital Stock Common | B59: -1045.22 | C59: 574617.84 | D59: 0 | E59: -1000 | F59: - | G59: - | H59: 572572.62 | J59: -600000
A60: Additional Paid-In Capital | B60: -786608243.4 | C60: -2585520.98 | D60: -21240437.78 | E60: -7150000 | F60: - | G60: -1063928 | H60: -818648130.1 | J60: 818600000
A61: Treasury Stock Additional Paid-In Capital | B61: - | C61: - | D61: - | E61: - | F61: - | G61: - | H61: 0 | J61: 0
A62: Unrealized Capital Gains(Losses) | B62: -97235801.53 | C62: - | D62: 0.08 | E62: 0.01 | F62: - | G62: - | H62: -97235801.44 | J62: 97200000
A63: Retained Earnings | B63: -1614436459 | C63: 780318.29 | D63: 17554263.47 | E63: 278782.92 | F63: -59814.55 | G63: 103659.24 | H63: -1595779250 | J63: 1595800000
A64: Treasury Stock | B64: 0 | C64: - | D64: - | E64: - | F64: - | G64: - | H64: 0 | J64: 0
A65: Total Stockholders Equity | B65: -2498281549 | C65: -1230584.85 | D65: -3686174.23 | E65: -6872217.07 | F65: -59814.55 | G65: -960268.76 | H65: -2511090609 | J65: 2511100000

Sheet Proof-P&C (hidden)
A2: Property and Casualty
A3: =FORMQTR&", "&VALUE(CV) -> 
E4: =CQ&"' "&RIGHT(CV,2) ->  | G4: =CQ&"' "&RIGHT(PV,2) ->  | L4: ="YTD"&" "&RIGHT(CV,2) ->  | N4: ="YTD"&" "&RIGHT(PV,2) -> 
B5: Page #'s | E5: Variance | G5: Variance | I5: Page #'s | L5: Variance | N5: Variance
A7: Net investment income | B7: 7 | C7: 9 | E7: =+#REF!-#REF! ->  | G7: =+#REF!-#REF! ->  | I7: 7 | J7: 10 | L7: =+#REF!-#REF! ->  | N7: =+#REF!-#REF! -> 
A9: Segment Income Before Taxes:
A10: Personal Lines | B10: 1 | C10: 9 | E10: =+#REF!-#REF! ->  | G10: =+#REF!-#REF! ->  | I10: =+B10 -> 1 | J10: 10 | L10: =+#REF!-#REF! ->  | N10: =+#REF!-#REF! -> 
A11: Commercial Lines | B11: 1 | C11: =+C$10 -> 9 | E11: =+#REF!-#REF! ->  | G11: =+#REF!-#REF! ->  | I11: 1 | J11: =+J10 -> 10 | L11: =+#REF!-#REF! ->  | N11: =+#REF!-#REF! -> 
A12: Other P&C | B12: 1 | C12: =+C$10 -> 9 | E12: =+#REF!-#REF! ->  | G12: =+#REF!-#REF! ->  | I12: 1 | J12: =+J10 -> 10 | L12: =+#REF!-#REF! ->  | N12: =+#REF!-#REF! -> 
A13: Total P&C segment income | B13: 1 | C13: =+C$10 -> 9 | E13: =+#REF!-#REF! ->  | G13: =+#REF!-#REF! ->  | I13: 1 | J13: =+J10 -> 10 | L13: =+#REF!-#REF! ->  | N13: =+#REF!-#REF! -> 
A15: Segment income before taxes | B15: =+C7 -> 9 | C15: =+C10 -> 9 | E15: =+#REF!-#REF! ->  | G15: =+#REF!-#REF! ->  | I15: =+B15 -> 9 | J15: =+J10 -> 10 | L15: =+#REF!-#REF! ->  | N15: =+#REF!-#REF! -> 
A17: GAAP to Stat: Prior year reserve development:
A18: Personal auto | B18: =+C10 -> 9 | C18: Calc 20 | E18: =+#REF!-#REF! ->  | G18: =+#REF!-#REF! ->  | I18: =+J10 -> 10 | J18: calc 21 | L18: =+#REF!-#REF! ->  | N18: =+#REF!-#REF! -> 
A19: Homeowners | B19: =+B$18 -> 9 | C19: Calc 20 | E19: =+#REF!-#REF! ->  | G19: =+#REF!-#REF! ->  | I19: =+I$18 -> 10 | J19: calc 21 | L19: =+#REF!-#REF! ->  | N19: =+#REF!-#REF! -> 
A20: Other personal | B20: 9 | C20: Calc 20 | E20: =+#REF!-#REF! ->  | G20: =+#REF!-#REF! ->  | I20: 10 | J20: calc 21 | L20: =+#REF!-#REF! ->  | N20: =+#REF!-#REF! -> 
A21: Total personal | B21: 9 | C21: Calc 20 | E21: =+#REF!-#REF! ->  | G21: =+#REF!-#REF! ->  | I21: 10 | J21: calc 21 | L21: =+#REF!-#REF! ->  | N21: =+#REF!-#REF! -> 
A23: Workers compensation | B23: =+B$18 -> 9 | C23: Calc 20 | E23: =+#REF!-#REF! ->  | G23: =+#REF!-#REF! ->  | I23: =+I$18 -> 10 | J23: calc 21 | L23: =+#REF!-#REF! ->  | N23: =+#REF!-#REF! -> 
A24: Commercial Automobile | B24: 9 | C24: Calc 20 | E24: =+#REF!-#REF! ->  | G24: =+#REF!-#REF! ->  | I24: 10 | J24: calc 21 | L24: =+#REF!-#REF! ->  | N24: =+#REF!-#REF! -> 
A25: Commercial multiple peril | B25: 9 | C25: Calc 20 | E25: =+#REF!-#REF! ->  | G25: =+#REF!-#REF! ->  | I25: 10 | J25: calc 21 | L25: =+#REF!-#REF! ->  | N25: =+#REF!-#REF! -> 
A26: Other commercial lines | B26: 9 | C26: Calc 20 | E26: =+#REF!-#REF! ->  | G26: =+#REF!-#REF! ->  | I26: 10 | J26: calc 21 | L26: =+#REF!-#REF! ->  | N26: =+#REF!-#REF! -> 
A27: Total commericial | B27: 9 | C27: Calc 20 | E27: =+#REF!-#REF! ->  | G27: =+#REF!-#REF! ->  | I27: 10 | J27: calc 21 | L27: =+#REF!-#REF! ->  | N27: =+#REF!-#REF! -> 
A29: Other property and casualty | B29: =+B$18 -> 9 | C29: =+C$18 -> Calc 20 | E29: =+#REF!-#REF! ->  | G29: =+#REF!-#REF! ->  | I29: =+I$18 -> 10 | J29: =+J$18 -> calc 21 | L29: =+#REF!-#REF! ->  | N29: =+#REF!-#REF! -> 
A31: Total Property and Casualty | B31: =+B$18 -> 9 | C31: =+C$18 -> Calc 20 | E31: =+#REF!-#REF! ->  | G31: =+#REF!-#REF! ->  | I31: =+I$18 -> 10 | J31: =+J$18 -> calc 21 | L31: =+#REF!-#REF! ->  | N31: =+#REF!-#REF! -> 
A33: Net premiums written | B33: 7 | C33: 9 | E33: =+#REF!-#REF! ->  | G33: =+#REF!-#REF! ->  | I33: 7 | J33: 10 | L33: =+#REF!-#REF! ->  | N33: =+#REF!-#REF! -> 
A34: Net premiums earned | B34: =+B33 -> 7 | C34: =+C33 -> 9 | E34: =+#REF!-#REF! ->  | G34: =+#REF!-#REF! ->  | I34: =+I33 -> 7 | J34: =+J33 -> 10 | L34: =+#REF!-#REF! ->  | N34: =+#REF!-#REF! -> 
A35: Other Income | B35: =+B33 -> 7 | C35: =+C33 -> 9 | E35: =+#REF!-#REF! ->  | G35: =+#REF!-#REF! ->  | I35: =+I33 -> 7 | J35: =+J33 -> 10 | L35: =+#REF!-#REF! ->  | N35: =+#REF!-#REF! -> 
A36: Policy benefits, claims, losses and LAE | B36: =+B33 -> 7 | C36: =+C33 -> 9 | E36: =+#REF!-#REF!-#REF!-#REF!-#REF!-#REF!-#REF! ->  | G36: =+#REF!-#REF!-#REF!-#REF!-#REF!-#REF!-#REF! ->  | I36: =+I33 -> 7 | J36: =+J33 -> 10 | L36: =+#REF!-#REF!-#REF!-#REF!-#REF!-#REF!-#REF! ->  | N36: =+#REF!-#REF!-#REF!-#REF!-#REF!-#REF!-#REF! -> 
A37: Policy acquisition and other op ex | B37: =+B33 -> 7 | C37: =+C33 -> 9 | E37: =+#REF!+#REF!-#REF!+#REF! ->  | G37: =+#REF!+#REF!-#REF!+#REF! ->  | I37: =+I33 -> 7 | J37: =+J33 -> 10 | L37: =+#REF!+#REF!-#REF!+#REF! ->  | N37: =+#REF!+#REF!-#REF!+#REF! -> 

Sheet Proof-Inv. (hidden)
A2: Investments
A3: =FORMQTR&", "&VALUE(CV) -> 
K4: =CQ&"' "&RIGHT(CV,2) ->  | M4: =CQ&"' "&RIGHT(PV,2) ->  | R4: ="YTD"&" "&RIGHT(CV,2) ->  | T4: ="YTD"&" "&RIGHT(PV,2) -> 
H5: Page #'s | K5: Variance | M5: Variance | O5: Page #'s | R5: Variance | T5: Variance | V5: Notes
A6: Net Investment Income: | V6: Uses retrieves to verify the NII for the period.
A7: Total Company | H7: 4 | I7: 13, 14-Q1 | K7: =+'3'!D11-'17'!#REF! ->  | M7: =+'3'!G11-'17'!N13 -> 68300000 | O7: 4 | P7: 13 | R7: =+'3'!L11-'17'!#REF! ->  | T7: =+'3'!O11-'17'!N13 -> 209100000
C8: =CY ->  | E8: =CY ->  | G8: =CY -> 
C9: =VALUE(CV)&" Actuals" ->  | E9: =VALUE(CV)&" Actuals" ->  | G9: =VALUE(PV)&" Actuals" -> 
C10: Net Investment Income- | E10: Net Investment Income- | G10: Net Investment Income-
C11: GAAP | E11: GAAP | G11: GAAP
C12: Product Qualifier | E12: Product Qualifier | G12: Product Qualifier
C13: Corporate-Capacity | E13: Corporate-Capacity | G13: Corporate-Capacity
C14: THG Consolidated | E14: THG Consolidated | G14: THG Consolidated
B15: Corporate Segment | C15: - | D15: Eliminations | E15: 0 | F15: Eliminations | G15: 0
C16: =(+C15)*-1 -> 
A18: Property and Casualty | H18: xxxxxxxxx | I18: xxxxxxxxx | K18: xxxxxxxxxxxxx | M18: xxxxxxxxxxxxx | O18: 5 | P18: =+P7 -> 13 | R18: =+#REF!-'17'!#REF!-'Proof-Inv.'!E15+'Proof-Inv.'!C16 ->  | T18: =+#REF!/1000000-'Proof-Inv.'!G15/1000000+'17'!N13/10000000 ->  | V18: P&C plus corp seg less elims = page 19
A19: Life Companies | H19: xxxxxxxxx | I19: xxxxxxxxx | K19: xxxxxxxxxxxxx | M19: xxxxxxxxxxxxx | O19: 12 | P19: =+P7 -> 13 | R19: =+#REF!-'17'!#REF! ->  | T19: =+#REF!-'17'!#REF! -> 
A21: Net realized investment gains | H21: =+O7 -> 4 | I21: 14 | K21: =+'3'!D12-#REF!*1000000 ->  | M21: =+'3'!G12-#REF!*1000000 ->  | O21: =+H21 -> 4 | P21: 14 | R21: =+'3'!L12-#REF!*1000000 ->  | T21: =+'3'!O12-#REF!*1000000 -> 
A23: Fixed maturities amortized cost:
A24: Life companies | H24: xxxxxxxxx | I24: xxxxxxxxx | K24: xxxxxxxxxxxxx | M24: xxxxxxxxxxxxx | O24: OLD14 | P24: 16 | R24: =+#REF!-'19'!#REF! ->  | T24: n/a
A25: Total | H25: xxxxxxxxx | I25: xxxxxxxxx | K25: xxxxxxxxxxxxx | M25: xxxxxxxxxxxxx | O25: 6 | P25: 16 | R25: =+#REF!-'19'!#REF! ->  | T25: =+#REF!-'19'!#REF! -> 
A27: Fixed maturities fair value:
A28: Life companies | H28: xxxxxxxxx | I28: xxxxxxxxx | K28: xxxxxxxxxxxxx | M28: xxxxxxxxxxxxx | O28: OLD14 | P28: 16 | R28: =+#REF!-'19'!#REF!*1000000 ->  | T28: n/a
A29: Total | H29: xxxxxxxxx | I29: xxxxxxxxx | K29: xxxxxxxxxxxxx | M29: xxxxxxxxxxxxx | O29: 6 | P29: 16 | R29: =+'4'!D10-('19'!#REF!-'19'!#REF!)*1000000 ->  | T29: =+'4'!G10-'19'!#REF!*1000000 -> 
A32: updated 08/03/2006 by SHA
A33: updated 7/24/08 by JPH

Sheet Proof-History (hidden)
A2: Historical Financial Highlights
A3: =FORMQTR&", "&VALUE(CV) ->  | C3: MANUALLY UPDATE CELL REFERENCES FOR QTR COLUMNS!!
E4: =CQ&"' "&RIGHT(CV,2) ->  | G4: =CQ&"' "&RIGHT(PV,2) ->  | I4: =CY&"' "&RIGHT(CV,2) ->  | K4: =CY&"' "&RIGHT(PV,2) -> 
B5: Page #'s | E5: Variance | G5: Variance | I5: Variance | K5: Variance
A6: SEGMENT INCOME:
A7: Property and Casualty
A8: Personal Lines | B8: 1 | C8: 19, 15Q1 | E8: =+#REF!-'21'!P13 ->  | G8: =+#REF!-'21'!#REF! ->  | I8: =+#REF!-SUM('21'!F13:Q13) ->  | K8: =+#REF!-SUM('21'!#REF!) -> 
A9: Commercial Lines | B9: 1 | C9: =+C8 -> 19, 15Q1 | E9: =+#REF!-'21'!P12 ->  | G9: =+#REF!-'21'!#REF! ->  | I9: =+#REF!-SUM('21'!F12:Q12) ->  | K9: =+#REF!-SUM('21'!#REF!) -> 
A10: Other | B10: 1 | C10: =+C8 -> 19, 15Q1 | E10: =+#REF!-'21'!P15 ->  | G10: =+#REF!-'21'!#REF! ->  | I10: =+#REF!-SUM('21'!F15:Q15) ->  | K10: =+#REF!-SUM('21'!#REF!) -> 
A11: Total Property and Casualty | B11: 1 | C11: =+C$8 -> 19, 15Q1 | E11: =+#REF!-'21'!P16 ->  | G11: =+#REF!-'21'!#REF! ->  | I11: =+#REF!-SUM('21'!F16:Q16) ->  | K11: =+#REF!-SUM('21'!#REF!) -> 
A12: Life Companies | B12: 1 | C12: =+C$8 -> 19, 15Q1 | E12: =+#REF!-'21'!#REF! ->  | G12: =+#REF!-'21'!#REF! ->  | I12: =+#REF!-SUM('21'!#REF!) ->  | K12: =+#REF!-SUM('21'!#REF!) -> 
A13: Corporate Debt | B13: 1 | C13: =+C$8 -> 19, 15Q1 | E13: =+#REF!-'21'!P18 ->  | G13: =+#REF!-'21'!#REF! ->  | I13: =+#REF!-SUM('21'!F18:Q18) ->  | K13: =+#REF!-SUM('21'!#REF!) -> 
A15: Total segment income before federal income taxes | B15: 1 | C15: =+C$8 -> 19, 15Q1 | E15: =+#REF!-'21'!P20 ->  | G15: =+#REF!-'21'!#REF! ->  | I15: =+#REF!-SUM('21'!F20:Q20) ->  | K15: =+#REF!-SUM('21'!#REF!) -> 
A17: Federal income tax (expense) benefit on segment income | B17: 1 | C17: =+C$8 -> 19, 15Q1 | E17: =+#REF!-'21'!P22 ->  | G17: =+#REF!-'21'!#REF! ->  | I17: =+#REF!-SUM('21'!F22:Q22) ->  | K17: =+#REF!-SUM('21'!#REF!) -> 
A18: Total segment income after federal income taxes | B18: 1 | C18: =+C$8 -> 19, 15Q1 | E18: =+#REF!-SUM('21'!P24) ->  | G18: =+#REF!-'21'!#REF! ->  | I18: =+#REF!-SUM('21'!F24:Q24) ->  | K18: =+#REF!-SUM('21'!#REF!) -> 
A19: Change in prior years tax reserves | B19: 1 | C19: =+C$8 -> 19, 15Q1 | E19: =+#REF!-'21'!#REF! ->  | G19: =+#REF!-'21'!#REF! ->  | I19: =+#REF!-SUM('21'!#REF!) ->  | K19: =+#REF!-SUM('21'!#REF!) -> 
A20: Net realized investment gains (losses), net of amortization and taxes | B20: 1 | C20: =+C$8 -> 19, 15Q1 | E20: =+#REF!-'21'!P27 ->  | G20: =+#REF!-'21'!#REF! ->  | I20: =+#REF!-SUM('21'!F27:Q27) ->  | K20: =+#REF!-SUM('21'!#REF!) -> 
A21: (Losses) gains from retirement of funding agreements and trust
A22: instruments supported by funding obligations, net of taxes | B22: 1 | C22: =+C$8 -> 19, 15Q1 | E22: =SUM(#REF!)-SUM('21'!#REF!) ->  | G22: =+#REF!-'21'!#REF! ->  | I22: =+#REF!-SUM('21'!#REF!) ->  | K22: =+#REF!-SUM('21'!#REF!) -> 
A23: Restructuring costs, net of taxes | B23: 1 | C23: 19, 15Q1 | E23: =+#REF!-'21'!#REF! ->  | G23: =+#REF!-'21'!#REF! ->  | I23: =+#REF!-SUM('21'!#REF!) ->  | K23: =+#REF!-SUM('21'!#REF!) -> 
A24: Federal income tax expense on non-segment income | B24: 1 | C24: 19, 15Q1 | E24: =+#REF!-'21'!P30 ->  | G24: =+#REF!-'21'!#REF! ->  | I24: =+#REF!-SUM('21'!F30:Q30) ->  | K24: =+#REF!-SUM('21'!#REF!) -> 
A25: Income from continuing operations, net of taxes | B25: 1 | C25: 19, 15Q1 | E25: =+#REF!-'21'!P31 ->  | G25: =+#REF!-'21'!#REF! ->  | I25: =+#REF!-SUM('21'!F31:Q31) ->  | K25: =+#REF!-SUM('21'!#REF!) -> 
A27: Income from discontinued variable life insurance and
A28: annuity business, net of taxes | B28: 1 | C28: 19, 15Q1 | E28: =+#REF!-'21'!#REF! ->  | G28: =+#REF!-'21'!#REF! ->  | I28: =+#REF!-SUM('21'!#REF!) ->  | K28: =+#REF!-SUM('21'!#REF!) -> 
A29: (Loss) income from operations of discontiued FAFLIC | B29: 1 | C29: 19, 15Q1 | E29: =#REF!-'21'!#REF! ->  | G29: =#REF!-'21'!#REF! ->  | I29: =#REF!-'21'!#REF!-'21'!#REF! ->  | K29: =#REF!-'21'!#REF!-'21'!#REF! -> 
A30: Income from operations of AMGRO | B30: 1 | C30: 19, 15Q1 | E30: =#REF!-'21'!#REF! ->  | G30: =#REF!-'21'!#REF! ->  | I30: =#REF!-'21'!#REF!-'21'!#REF! ->  | K30: =#REF!-'21'!#REF!-'21'!#REF! ->  | M30: Amgro sale
A31: Loss on disposal of variable life insurance and annuity
A32: business, net of taxes | B32: 1 | C32: 19, 15Q1 | E32: =+#REF!-'21'!#REF! ->  | G32: =+#REF!-'21'!#REF! ->  | I32: =+#REF!-SUM('21'!#REF!) ->  | K32: =+#REF!-SUM('21'!#REF!) -> 
A33: Other | B33: 1 | C33: 19, 15Q1 | E33: =+#REF!-'21'!#REF! ->  | G33: =+#REF!-'21'!#REF! ->  | I33: =+#REF!-SUM('21'!#REF!) ->  | K33: =+#REF!-SUM('21'!#REF!) -> 
A34: Income before cumulative effect of accounting change | B34: 1 | C34: 19, 15Q1 | E34: =+#REF!-'21'!#REF! ->  | G34: =+#REF!-'21'!#REF! ->  | I34: =+#REF!-SUM('21'!#REF!) ->  | K34: =+#REF!-SUM('21'!#REF!) -> 
A35: Cumulative effect of change in accounting
A36: principle, net of taxes | B36: 1 | C36: 19, 15Q1 | E36: =SUM(#REF!)-SUM('21'!#REF!) ->  | G36: =+#REF!-'21'!#REF! ->  | I36: =+#REF!-SUM('21'!#REF!-'21'!#REF!) ->  | K36: =+#REF!-SUM('21'!#REF!) -> 
A37: Net income | B37: 1 | C37: 19, 15Q1 | E37: =+#REF!-'21'!P34 ->  | G37: =+#REF!-'21'!#REF! ->  | I37: =+#REF!-SUM('21'!F34:Q34) ->  | K37: =+#REF!-SUM('21'!#REF!) -> 
A39: PER SHARE DATA (DILUTED)
A40: INCOME (LOSS) FROM CONTINUING OPERATIONS | B40: 2 | C40: =+C$8 -> 19, 15Q1 | E40: =+#REF!-'21'!#REF! ->  | G40: =+#REF!-'21'!#REF! ->  | I40: n/a | K40: n/a
A41: (LOSS) INCOME FROM DISCONTINUED OPERATIONS,
A42: NET OF TAXES | B42: 2 | C42: =+C$8 -> 19, 15Q1 | E42: =+#REF!+#REF!-'21'!#REF! ->  | G42: =+#REF!+#REF!-'21'!#REF! ->  | I42: n/a | K42: n/a
A43: NET INCOME (LOSS) | B43: 2 | C43: =+C$8 -> 19, 15Q1 | E43: =+#REF!-'21'!#REF! ->  | G43: =+#REF!-'21'!#REF! ->  | I43: n/a | K43: n/a
A45: WEIGHTED AVERAGE SHARES
A46: OUTSTANDING (DILUTED) | B46: 5 | C46: =+C$8 -> 19, 15Q1 | E46: =+#REF!-'21'!#REF! ->  | G46: =+#REF!-'21'!#REF! ->  | I46: n/a | K46: n/a
A48: BALANCE SHEET: | E48: =CQ&"' "&RIGHT(CV,2) ->  | G48: PY End
A49: Total investments | B49: 6 | C49: =+C$8 -> 19, 15Q1 | E49: =+'4'!D13-'21'!#REF! ->  | G49: =+'4'!G13-'21'!#REF! ->  | I49: n/a | K49: n/a
A50: Separate account assets | B50: 6 | C50: =+C$8 -> 19, 15Q1 | E50: =+'4'!#REF!-'21'!#REF! ->  | G50: =+'4'!#REF!-'21'!#REF! ->  | I50: n/a | K50: n/a
A51: Total assets | B51: 6 | C51: =+C$8 -> 19, 15Q1 | E51: =+'4'!D23-'21'!#REF! ->  | G51: =+'4'!G23-'21'!#REF! ->  | I51: n/a | K51: n/a
A52: Total shareholders' equity | B52: 6 | C52: =+C$8 -> 19, 15Q1 | E52: =+'4'!D45-'21'!#REF! ->  | G52: =+'4'!G45-'21'!#REF! ->  | I52: n/a | K52: n/a
A53: Book value per share | B53: 3 | C53: =+C$8 -> 19, 15Q1 | E53: =SUM(#REF!)-SUM('21'!#REF!) ->  | G53: =+#REF!-'21'!#REF! ->  | I53: n/a | K53: n/a
A54: Book value per share, excluding accumulated
A55: other comprehensive income | B55: 3 | C55: =+C$8 -> 19, 15Q1 | E55: =SUM(#REF!)-SUM('21'!#REF!) ->  | G55: =+#REF!-'21'!#REF! ->  | I55: n/a | K55: n/a
A57: updated Q4-07 &06 columns, CP 12-14-07

Sheet Ver Doc 2.2 (hidden)
A2: Name of Spreadsheet | C2: Stat Supp Working File - Pages 3(P&L) and 4(BS), 5(P&C Segment Income)
C3: 12(Life Segment Income) are used for SEC External Reporting
A5: Drive & Directory Location | C5: Homcfaf1\vol5\Stat Supp\Year\Quarter
A7: Date Created; Most Recent Change Date | C7: 2001-04-20 | D7: 2006-03-30
A9: Version # | C9: 2.2
A11: Spreadsheet Owner; Contact Info | C11: Sandra Aramony; saramony@allmerica.com
A13: Total # of Users; # of Users outside Dept. | C13: 8; none
A15: Frequency of Change:
B16: Formula/Calculations | C16: quarterly
B17: Input/Data Changes | C17: quarterly
A19: Purpose of model logic/formulas: | C19: Summarizes financial information from the general ledger and formats
C20: it for the Statistical Supplement. Also used to produce the Balance Sheet
C21: P&L and other financial statement disclosures
A23: Operating instructions for use/input: | C23: The pages are updated through an Essbase retrieve program. Use "Run" tab to
C24: select pages for which you want to retrieve information by entering "y" in the Run cell.
C25: After retrieve, compare information to Product Reports, Production Reports. Enter
C26: rounding in the shaded columns to the right of the page, if necessary.
C27: All manual input of information is entered on Input, Calc, or Footnote tabs. There is no manual
C28: input on actual stat supp pages.
C29: Use Proof tabs to check balancing.
A31: Historical/Standing data | C31: Prior Quarter\Prior Year
A33: Complex Functions or Links | C33: Macros are used to retrieve information from the ledger and to print the entire document.
A35: Input Integrity Checks | C35: Same as output integrity checks below
A37: Output Integrity Checks | C37: Reviewed by 2 individuals; beginning balances agreed to prior period analysis;
C38: data agreed to the general ledger; manual recalculations performed on a test basis
A40: Cell & Formula Protection | C40: None
A42: Access Protection | C42: Access restricted to Afgaap on Homcfaf1\Vol 5

Sheet Ver Doc 2.1 (hidden)
A2: Name of Spreadsheet | C2: Stat Supp Working File - Pages 3(P&L) and 4(BS), 5(P&C Segment Income)
C3: 12(Life Segment Income) are used for SEC External Reporting
A5: Drive & Directory Location | C5: Homcfaf1\vol5\Stat Supp\Year\Quarter
A7: Date Created; Most Recent Change Date | C7: 2001-04-20 | D7: 2005-12-30
A9: Version # | C9: 2.1
A11: Spreadsheet Owner; Contact Info | C11: Sandra Aramony; saramony@allmerica.com
A13: Total # of Users; # of Users outside Dept. | C13: 8; none
A15: Frequency of Change:
B16: Formula/Calculations | C16: quarterly
B17: Input/Data Changes | C17: quarterly
A19: Purpose of model logic/formulas: | C19: Summarizes financial information from the general ledger and formats
C20: it for the Statistical Supplement. Also used to produce the Balance Sheet
C21: P&L and other financial statement disclosures
A23: Operating instructions for use/input: | C23: The pages are updated through an Essbase retrieve program. Use "Run" tab to
C24: select pages for which you want to retrieve information by entering "y" in the Run cell.
C25: After retrieve, compare information to Product Reports, Production Reports. Enter
C26: rounding in the shaded columns to the right of the page, if necessary.
C27: All manual input of information is entered on Input, Calc, or Footnote tabs. There is no manual
C28: input on actual stat supp pages.
C29: Use Proof tabs to check balancing.
A31: Historical/Standing data | C31: Prior Quarter\Prior Year
A33: Complex Functions or Links | C33: Macros are used to retrieve information from the ledger and to print the entire document.
A35: Input Integrity Checks | C35: Same as output integrity checks below
A37: Output Integrity Checks | C37: Reviewed by 2 individuals; beginning balances agreed to prior period analysis;
C38: data agreed to the general ledger; manual recalculations performed on a test basis
A40: Cell & Formula Protection | C40: None
A42: Access Protection | C42: Access restricted to Afgaap on Homcfaf1\Vol 5

Sheet Ver Doc 2.0 (hidden)
A2: Name of Spreadsheet | C2: Stat Supp Working File - Pages 3(P&L) and 4(BS), 5(P&C Segment Income)
C3: 12(Life Segment Income) are used for SEC External Reporting
A5: Drive & Directory Location | C5: Homcfaf1\vol5\Stat Supp\Year\Quarter
A7: Date Created; Most Recent Change Date | C7: 2001-04-20 | D7: 2005-01-19
A9: Version # | C9: 2
A11: Spreadsheet Owner; Contact Info | C11: Sandra Aramony; saramony@allmerica.com
A13: Total # of Users; # of Users outside Dept. | C13: 8; none
A15: Frequency of Change:
B16: Formula/Calculations | C16: quarterly
B17: Input/Data Changes | C17: quarterly
A19: Purpose of model logic/formulas: | C19: Summarizes financial information from the general ledger and formats
C20: it for the Statistical Supplement. Also used to produce the Balance Sheet
C21: P&L and other financial statement disclosures
A23: Operating instructions for use/input: | C23: The pages are updated through an Essbase retrieve program. Use "Run" tab to
C24: select pages for which you want to retrieve information by entering "y" in the Run cell.
C25: After retrieve, compare information to Product Reports, Production Reports. Enter
C26: rounding in the shaded columns to the right of the page, if necessary.
C27: All manual input of information is entered on Input, Calc, or Footnote tabs. There is no manual
C28: input on actual stat supp pages.
C29: Use Proof tabs to check balancing.
A31: Historical/Standing data | C31: Prior Quarter\Prior Year
A33: Complex Functions or Links | C33: Macros are used to retrieve information from the ledger and to print the entire document.
A35: Input Integrity Checks | C35: Same as output integrity checks below
A37: Output Integrity Checks | C37: Reviewed by 2 individuals; beginning balances agreed to prior period analysis;
C38: data agreed to the general ledger; manual recalculations performed on a test basis
A40: Cell & Formula Protection | C40: None
A42: Access Protection | C42: Access restricted to Afgaap on Homcfaf1\Vol 5

Sheet Ver Doc 1.0 (hidden)
A2: Name of Spreadsheet | C2: Stat Supp Working File - Pages 3(P&L) and 4(BS), 5(P&C Segment Income)
C3: 12(Life Segment Income) are used for SEC External Reporting
A5: Drive & Directory Location | C5: Homcfaf1\vol5\Stat Supp\Year\Quarter
A7: Date Created; Most Recent Change Date | C7: 2001-04-20
A9: Version # | C9: 1
A11: Spreadsheet Owner; Contact Info | C11: Sandra Aramony; saramony@allmerica.com
A13: Total # of Users; # of Users outside Dept. | C13: 8; none
A15: Frequency of Change:
B16: Formula/Calculations | C16: quarterly
B17: Input/Data Changes | C17: quarterly
A19: Purpose of model logic/formulas: | C19: Summarizes financial information from the general ledger and formats
C20: it for the Statistical Supplement. Also used to produce the Balance Sheet
C21: P&L and other financial statement disclosures
A23: Operating instructions for use/input: | C23: The pages are updated through an Essbase retrieve program with limited
C24: manual manipulation of numbers.
A26: Historical/Standing data | C26: Prior Quarter\Prior Year
A28: Complex Functions or Links | C28: Macros are used to retrieve information from the ledger
A30: Input Integrity Checks | C30: Same as output integrity checks below
A32: Output Integrity Checks | C32: Reviewed by 2 individuals; beginning balances agreed to prior period analysis;
C33: data agreed to the general ledger; manual recalculations performed on a test basis
A35: Cell & Formula Protection | C35: None
A37: Access Protection | C37: Access restricted to Afgaap on Homcfaf1\Vol 5

Sheet Ver Doc (hidden)
A2: Name of Spreadsheet | C2: Stat Supp Working File - Pages 3(P&L) and 4(BS), 5(P&C Segment Income)
C3: 12(Life Segment Income) are used for SEC External Reporting
A5: Drive & Directory Location | C5: Homcfaf1\vol5\Stat Supp\Year\Quarter
A7: Date Created; Most Recent Change Date | C7: 2001-04-20
A9: Version # | C9: 1.0
A11: Spreadsheet Owner; Contact Info | C11: Sandra Aramony; saramony@allmerica.com
A13: Total # of Users; # of Users outside Dept. | C13: 8; none
A15: Frequency of Change:
B16: Formula/Calculations | C16: quarterly
B17: Input/Data Changes | C17: quarterly
A19: Purpose of model logic/formulas: | C19: Summarizes financial information from the general ledger and formats
C20: it for the Statistical Supplement. Also used to produce the Balance Sheet
C21: P&L and other financial statement disclosures
A23: Operating instructions for use/input: | C23: The pages are updated through an Essbase retrieve program with limited
C24: manual manipulation of numbers.
A26: Historical/Standing data | C26: Prior Quarter\Prior Year
A28: Complex Functions or Links | C28: Macros are used to retrieve information from the ledger
A30: Input Integrity Checks | C30: Same as output integrity checks below
A32: Output Integrity Checks | C32: Reviewed by 2 individuals; beginning balances agreed to prior period analysis;
C33: data agreed to the general ledger; manual recalculations performed on a test basis
A35: Cell & Formula Protection | C35: None
A37: Access Protection | C37: Access restricted to Afgaap on Homcfaf1\Vol 5
